Body name,Body,Service Label,Service Code,Service division Label,Service division code,Organisational unit,Expenditure Category,Expenditure Code,CIPFA detailed expenditure type,CIPFA detailed expenditure code,Narrative,Date,Transaction number,Net Amount,Capital and revenue,Supplier Name
Gosport Borough Council,,"CULTURAL, ENV AND PLANNING",H4-1,,,,ENERGY COSTS,,,,,30/03/2011,12806,55.26,REVENUE,British Gas Business
Gosport Borough Council,,"CULTURAL, ENV AND PLANNING",H4-1,,,,INDEPENDENT UNITS IN COUNCIL,,,,,24/03/2011,11864,312.44,REVENUE,Verdant Group Plc
Gosport Borough Council,,"CULTURAL, ENV AND PLANNING",H4-1,,,,WATER SERVICES,,,,,30/03/2011,12871,170.19,REVENUE,Southern Water Authority
Gosport Borough Council,,"CULTURAL, ENV AND PLANNING",H4-1,,,,SERVICES,,,,,24/03/2011,12576,660,REVENUE,Cyan Power Limited
Gosport Borough Council,,"CULTURAL, ENV AND PLANNING",H4-1,,,,GROUNDS MAINTENANCE COSTS,,,,,24/03/2011,12456,1152,REVENUE,Cliff Phillips Landscapes
Gosport Borough Council,,"CULTURAL, ENV AND PLANNING",H4-1,,,,GROUNDS MAINTENANCE COSTS,,,,,24/03/2011,12462,86.4,REVENUE,Cliff Phillips Landscapes
Gosport Borough Council,,"CULTURAL, ENV AND PLANNING",H4-1,,,,GROUNDS MAINTENANCE COSTS,,,,,24/03/2011,12463,2010,REVENUE,Cliff Phillips Landscapes
Gosport Borough Council,,"CULTURAL, ENV AND PLANNING",H4-1,,,,GROUNDS MAINTENANCE COSTS,,,,,24/03/2011,12610,1032,REVENUE,Cliff Phillips Landscapes
Gosport Borough Council,,"CULTURAL, ENV AND PLANNING",H4-1,,,,GROUNDS MAINTENANCE COSTS,,,,,30/03/2011,12785,384,REVENUE,Lees & Co
Gosport Borough Council,,"CULTURAL, ENV AND PLANNING",H4-1,,,,REPAIRS AND MAINT OF BUILDINGS,,,,,30/03/2011,12235,233.34,REVENUE,Gs Building Services Ltd
Gosport Borough Council,,"CULTURAL, ENV AND PLANNING",H4-1,,,,REPAIRS AND MAINT OF BUILDINGS,,,,,10/03/2011,11795,885.6,REVENUE,Gs Building Services Ltd
Gosport Borough Council,,"CULTURAL, ENV AND PLANNING",H4-1,,,,REPAIRS AND MAINT OF BUILDINGS,,,,,10/03/2011,11794,2690.52,REVENUE,Gs Building Services Ltd
Gosport Borough Council,,"CULTURAL, ENV AND PLANNING",H4-1,,,,GROUNDS MAINTENANCE COSTS,,,,,30/03/2011,12232,708.74,REVENUE,Gs Building Services Ltd
Gosport Borough Council,,"CULTURAL, ENV AND PLANNING",H4-1,,,,"EQUIP, FURNITURE AND MATERIALS",,,,,30/03/2011,12867,313.24,REVENUE,Signs And Lines Limited
Gosport Borough Council,,"CULTURAL, ENV AND PLANNING",H4-1,,,,"EQUIP, FURNITURE AND MATERIALS",,,,,30/03/2011,12235,480,REVENUE,Gs Building Services Ltd
Gosport Borough Council,,"CULTURAL, ENV AND PLANNING",H4-1,,,,GROUNDS MAINTENANCE COSTS,,,,,30/03/2011,12852,106.5,REVENUE,Gs Building Services Ltd
Gosport Borough Council,,"CULTURAL, ENV AND PLANNING",H4-1,,,,REPAIRS AND MAINT OF BUILDINGS,,,,,10/03/2011,11788,573.6,REVENUE,Lucas Windebank & Mcnally
Gosport Borough Council,,"CULTURAL, ENV AND PLANNING",H4-1,,,,INDEPENDENT UNITS IN COUNCIL,,,,,10/03/2011,11865,23000,REVENUE,The Arena Group Uk Ltd
Gosport Borough Council,,"CULTURAL, ENV AND PLANNING",H4-1,,,,REPAIRS AND MAINT OF BUILDINGS,,,,,24/03/2011,12238,1356,REVENUE,Gs Building Services Ltd
Gosport Borough Council,,"CULTURAL, ENV AND PLANNING",H4-1,,,,REPAIRS AND MAINT OF BUILDINGS,,,,,30/03/2011,12868,307.2,REVENUE,H.S. Jackson & Son (Fencing) Ltd
Gosport Borough Council,,"CULTURAL, ENV AND PLANNING",H4-1,,,,DIRECT TRANSPORT COSTS,,,,,24/03/2011,12525,78.56,REVENUE,Arval Uk Mltd
Gosport Borough Council,,"CULTURAL, ENV AND PLANNING",H4-1,,,,"PRINTING, STAT & OFFICE EXP",,,,,30/03/2011,12885,10.88,REVENUE,Ace Office Supplies Ltd
Gosport Borough Council,,"CULTURAL, ENV AND PLANNING",H4-1,,,,INDEPENDENT UNITS IN COUNCIL,,,,,17/03/2011,12158,30000,REVENUE,Hampshire County Council
Gosport Borough Council,,"CULTURAL, ENV AND PLANNING",H4-1,,,,REPAIRS AND MAINT OF BUILDINGS,,,,,30/03/2011,12539,1642.82,REVENUE,Gs Building Services Ltd
Gosport Borough Council,,"CULTURAL, ENV AND PLANNING",H4-1,,,,REPAIRS AND MAINT OF BUILDINGS,,,,,30/03/2011,12869,103.68,REVENUE,Advanced Lock & Locksmithing L
Gosport Borough Council,,"CULTURAL, ENV AND PLANNING",H4-1,,,,GROUNDS MAINTENANCE COSTS,,,,,30/03/2011,12851,87.11,REVENUE,Gs Building Services Ltd
Gosport Borough Council,,"CULTURAL, ENV AND PLANNING",H4-1,,,,GROUNDS MAINTENANCE COSTS,,,,,24/03/2011,12597,149.4,REVENUE,REDACTED
Gosport Borough Council,,"CULTURAL, ENV AND PLANNING",H4-1,,,,"EQUIP, FURNITURE AND MATERIALS",,,,,10/03/2011,11065,1620,REVENUE,Rh Waste Container Services Ltd
Gosport Borough Council,,"CULTURAL, ENV AND PLANNING",H4-1,,,,INDEPENDENT UNITS IN COUNCIL,,,,,24/03/2011,11864,111316.91,REVENUE,Verdant Group Plc
Gosport Borough Council,,"CULTURAL, ENV AND PLANNING",H4-1,,,,INDEPENDENT UNITS IN COUNCIL,,,,,30/03/2011,12419,820.58,REVENUE,Cromwell Polythene Ltd
Gosport Borough Council,,"CULTURAL, ENV AND PLANNING",H4-1,,,,INDEPENDENT UNITS IN COUNCIL,,,,,03/03/2011,11541,5105.86,REVENUE,Cromwell Polythene Ltd
Gosport Borough Council,,"CULTURAL, ENV AND PLANNING",H4-1,,,,INDEPENDENT UNITS IN COUNCIL,,,,,24/03/2011,11864,381.42,REVENUE,Verdant Group Plc
Gosport Borough Council,,"CULTURAL, ENV AND PLANNING",H4-1,,,,INDEPENDENT UNITS IN COUNCIL,,,,,24/03/2011,11864,3823.58,REVENUE,Verdant Group Plc
Gosport Borough Council,,"CULTURAL, ENV AND PLANNING",H4-1,,,,INDEPENDENT UNITS IN COUNCIL,,,,,24/03/2011,11778,3799.61,REVENUE,Verdant Group Plc
Gosport Borough Council,,"CULTURAL, ENV AND PLANNING",H4-1,,,,INDEPENDENT UNITS IN COUNCIL,,,,,24/03/2011,11864,31.46,REVENUE,Verdant Group Plc
Gosport Borough Council,,"CULTURAL, ENV AND PLANNING",H4-1,,,,INDEPENDENT UNITS IN COUNCIL,,,,,24/03/2011,11864,18,REVENUE,Verdant Group Plc
Gosport Borough Council,,"CULTURAL, ENV AND PLANNING",H4-1,,,,INDEPENDENT UNITS IN COUNCIL,,,,,24/03/2011,11864,3116.15,REVENUE,Verdant Group Plc
Gosport Borough Council,,"CULTURAL, ENV AND PLANNING",H4-1,,,,INDEPENDENT UNITS IN COUNCIL,,,,,24/03/2011,11864,3625.02,REVENUE,Verdant Group Plc
Gosport Borough Council,,"CULTURAL, ENV AND PLANNING",H4-1,,,,INDEPENDENT UNITS IN COUNCIL,,,,,10/03/2011,11593,6825,REVENUE,Mgb Plastics Ltd
Gosport Borough Council,,"CULTURAL, ENV AND PLANNING",H4-1,,,,INDEPENDENT UNITS IN COUNCIL,,,,,03/03/2011,11308,593.02,REVENUE,Verdant Group Plc
Gosport Borough Council,,"CULTURAL, ENV AND PLANNING",H4-1,,,,INDEPENDENT UNITS IN COUNCIL,,,,,03/03/2011,11309,639.68,REVENUE,Verdant Group Plc
Gosport Borough Council,,"CULTURAL, ENV AND PLANNING",H4-1,,,,INDEPENDENT UNITS IN COUNCIL,,,,,24/03/2011,11864,188.78,REVENUE,Verdant Group Plc
Gosport Borough Council,,"HIGHWAYS, ROADS AND TRANSPORT",H4-2,,,,WATER SERVICES,,,,,10/03/2011,11927,618.82,REVENUE,Southern Water Authority
Gosport Borough Council,,"HIGHWAYS, ROADS AND TRANSPORT",H4-2,,,,WATER SERVICES,,,,,30/03/2011,12871,953.62,REVENUE,Southern Water Authority
Gosport Borough Council,,"HIGHWAYS, ROADS AND TRANSPORT",H4-2,,,,SERVICES,,,,,30/03/2011,12805,97.44,REVENUE,Loomis Uk Ltd
Gosport Borough Council,,"CULTURAL, ENV AND PLANNING",H4-1,,,,ENERGY COSTS,,,,,28/03/2011,619,2039.57,REVENUE,Shell Gas Direct Ltd
Gosport Borough Council,,"CULTURAL, ENV AND PLANNING",H4-1,,,,WATER SERVICES,,,,,10/03/2011,11907,4996.6,REVENUE,Southern Water Authority
Gosport Borough Council,,"CULTURAL, ENV AND PLANNING",H4-1,,,,WATER SERVICES,,,,,10/03/2011,11908,1913.2,REVENUE,Portsmouth Water Ltd
Gosport Borough Council,,"CULTURAL, ENV AND PLANNING",H4-1,,,,OTHER ESTABLISHMENTS,,,,,24/03/2011,11864,94.39,REVENUE,Verdant Group Plc
Gosport Borough Council,,"HIGHWAYS, ROADS AND TRANSPORT",H4-2,,,,GROUNDS MAINTENANCE COSTS,,,,,24/03/2011,12457,1080,REVENUE,Cliff Phillips Landscapes
Gosport Borough Council,,"HIGHWAYS, ROADS AND TRANSPORT",H4-2,,,,GROUNDS MAINTENANCE COSTS,,,,,30/03/2011,12784,117.96,REVENUE,Lees & Co
Gosport Borough Council,,"HIGHWAYS, ROADS AND TRANSPORT",H4-2,,,,GROUNDS MAINTENANCE COSTS,,,,,24/03/2011,12456,30,REVENUE,Cliff Phillips Landscapes
Gosport Borough Council,,"HIGHWAYS, ROADS AND TRANSPORT",H4-2,,,,GROUNDS MAINTENANCE COSTS,,,,,24/03/2011,12462,2160,REVENUE,Cliff Phillips Landscapes
Gosport Borough Council,,"HIGHWAYS, ROADS AND TRANSPORT",H4-2,,,,GROUNDS MAINTENANCE COSTS,,,,,24/03/2011,12457,1200,REVENUE,Cliff Phillips Landscapes
Gosport Borough Council,,"HIGHWAYS, ROADS AND TRANSPORT",H4-2,,,,GROUNDS MAINTENANCE COSTS,,,,,24/03/2011,12463,2892,REVENUE,Cliff Phillips Landscapes
Gosport Borough Council,,"HIGHWAYS, ROADS AND TRANSPORT",H4-2,,,,GROUNDS MAINTENANCE COSTS,,,,,10/03/2011,11604,4380,REVENUE,Hillier Nurseries Ltd
Gosport Borough Council,,"HIGHWAYS, ROADS AND TRANSPORT",H4-2,,,,SERVICES,,,,,14/03/2011,12079,899,REVENUE,Malcolm Daughtrey Consultancy
Gosport Borough Council,,"HIGHWAYS, ROADS AND TRANSPORT",H4-2,,,,ADULT SOCIAL SERVICES,,,,,30/03/2011,12803,1478.1,REVENUE,Hampshire County Council
Gosport Borough Council,,"HIGHWAYS, ROADS AND TRANSPORT",H4-2,,,,ADULT SOCIAL SERVICES,,,,,10/03/2011,11898,76467.67,REVENUE,Hampshire County Council
Gosport Borough Council,,"HIGHWAYS, ROADS AND TRANSPORT",H4-2,,,,ADULT SOCIAL SERVICES,,,,,29/03/2011,12795,5302.5,REVENUE,Bridge Cars
Gosport Borough Council,,"HIGHWAYS, ROADS AND TRANSPORT",H4-2,,,,ADULT SOCIAL SERVICES,,,,,17/03/2011,12280,810,REVENUE,REDACTED
Gosport Borough Council,,"HIGHWAYS, ROADS AND TRANSPORT",H4-2,,,,REPAIRS AND MAINT OF BUILDINGS,,,,,30/03/2011,12923,20432.98,REVENUE,Hampshire County Council
Gosport Borough Council,,"HIGHWAYS, ROADS AND TRANSPORT",H4-2,,,,INDEPENDENT UNITS IN COUNCIL,,,,,17/03/2011,12126,806.62,REVENUE,Fareham Borough Council
Gosport Borough Council,,"HIGHWAYS, ROADS AND TRANSPORT",H4-2,,,,"EQUIP, FURNITURE AND MATERIALS",,,,,24/03/2011,12467,528,REVENUE,Tower Painting
Gosport Borough Council,,"HIGHWAYS, ROADS AND TRANSPORT",H4-2,,,,SERVICES,,,,,17/03/2011,12183,1500,REVENUE,Atkins Ltd
Gosport Borough Council,,"CULTURAL, ENV AND PLANNING",H4-1,,,,GRANTS AND SUBSCRIPTIONS,,,,,10/03/2011,11783,500,REVENUE,Solent Skiers Association
Gosport Borough Council,,"CULTURAL, ENV AND PLANNING",H4-1,,,,RENTS,,,,,30/03/2011,690,794,REVENUE,The Crown Estate
Gosport Borough Council,,"CULTURAL, ENV AND PLANNING",H4-1,,,,GROUNDS MAINTENANCE COSTS,,,,,10/03/2011,11791,1020,REVENUE,Gs Building Services Ltd
Gosport Borough Council,,"HIGHWAYS, ROADS AND TRANSPORT",H4-2,,,,REPAIRS AND MAINT OF BUILDINGS,,,,,17/03/2011,12170,1039.8,REVENUE,Lucas Windebank & Mcnally
Gosport Borough Council,,"CULTURAL, ENV AND PLANNING",H4-1,,,,"EQUIP, FURNITURE AND MATERIALS",,,,,30/03/2011,12781,558,REVENUE,Klipspringer Instrumentation
Gosport Borough Council,,"CULTURAL, ENV AND PLANNING",H4-1,,,,INDEPENDENT UNITS IN COUNCIL,,,,,17/03/2011,12126,142.78,REVENUE,Fareham Borough Council
Gosport Borough Council,,"CULTURAL, ENV AND PLANNING",H4-1,,,,GRANTS AND SUBSCRIPTIONS,,,,,30/03/2011,12866,168.69,REVENUE,Lexisnexis Butterworths
Gosport Borough Council,,"CULTURAL, ENV AND PLANNING",H4-1,,,,SERVICES,,,,,24/03/2011,11806,3196.8,REVENUE,Casella Measurement
Gosport Borough Council,,"CULTURAL, ENV AND PLANNING",H4-1,,,,COMMUNICATIONS AND COMPUTING,,,,,30/03/2011,12928,6,REVENUE,Vodafone Ltd
Gosport Borough Council,,"CULTURAL, ENV AND PLANNING",H4-1,,,,DIRECT TRANSPORT COSTS,,,,,24/03/2011,12525,86.42,REVENUE,Arval Uk Mltd
Gosport Borough Council,,"CULTURAL, ENV AND PLANNING",H4-1,,,,"EQUIP, FURNITURE AND MATERIALS",,,,,10/03/2011,11519,767.09,REVENUE,Industrial Pesticides
Gosport Borough Council,,"CULTURAL, ENV AND PLANNING",H4-1,,,,"EQUIP, FURNITURE AND MATERIALS",,,,,10/03/2011,11519,71.71,REVENUE,Industrial Pesticides
Gosport Borough Council,,"CULTURAL, ENV AND PLANNING",H4-1,,,,MISCELLANEOUS EXPENSES,,,,,30/03/2011,12896,186.4,REVENUE,REDACTED
Gosport Borough Council,,"CULTURAL, ENV AND PLANNING",H4-1,,,,MISCELLANEOUS EXPENSES,,,,,30/03/2011,12895,150,REVENUE,Making Space
Gosport Borough Council,,HOUSING SERVICES,H4-3,,,,GRANTS AND SUBSCRIPTIONS,,,,,24/03/2011,12516,2750,REVENUE,In Touch Support Ltd
Gosport Borough Council,,"CULTURAL, ENV AND PLANNING",H4-1,,,,GRANTS AND SUBSCRIPTIONS,,,,,24/03/2011,12516,2500,REVENUE,In Touch Support Ltd
Gosport Borough Council,,HOUSING SERVICES,H4-3,,,,GROUNDS MAINTENANCE COSTS,,,,,30/03/2011,12811,2942.41,REVENUE,Phs Group Ltd
Gosport Borough Council,,HOUSING SERVICES,H4-3,,,,GRANTS AND SUBSCRIPTIONS,,,,,30/03/2011,12829,260,REVENUE,REDACTED
Gosport Borough Council,,HOUSING SERVICES,H4-3,,,,GRANTS AND SUBSCRIPTIONS,,,,,23/03/2011,12513,595,REVENUE,Blakes Property Consultants Limited
Gosport Borough Council,,HOUSING SERVICES,H4-3,,,,GRANTS AND SUBSCRIPTIONS,,,,,23/03/2011,12528,680,REVENUE,Blakes Property Consultants Limited
Gosport Borough Council,,HOUSING SERVICES,H4-3,,,,GRANTS AND SUBSCRIPTIONS,,,,,01/03/2011,11484,695,REVENUE,Blakes Property Consultants Limited
Gosport Borough Council,,HOUSING SERVICES,H4-3,,,,GRANTS AND SUBSCRIPTIONS,,,,,08/03/2011,11808,500,REVENUE,Brite-Move
Gosport Borough Council,,HOUSING SERVICES,H4-3,,,,GRANTS AND SUBSCRIPTIONS,,,,,30/03/2011,12834,595,REVENUE,Brite-Move
Gosport Borough Council,,HOUSING SERVICES,H4-3,,,,GRANTS AND SUBSCRIPTIONS,,,,,23/03/2011,12515,595,REVENUE,Fallaize Properties Ltd
Gosport Borough Council,,HOUSING SERVICES,H4-3,,,,GRANTS AND SUBSCRIPTIONS,,,,,02/03/2011,11589,700,REVENUE,Gcm Property Management
Gosport Borough Council,,HOUSING SERVICES,H4-3,,,,GRANTS AND SUBSCRIPTIONS,,,,,11/03/2011,12072,700,REVENUE,REDACTED
Gosport Borough Council,,HOUSING SERVICES,H4-3,,,,GRANTS AND SUBSCRIPTIONS,,,,,11/03/2011,12073,525,REVENUE,REDACTED
Gosport Borough Council,,HOUSING SERVICES,H4-3,,,,GRANTS AND SUBSCRIPTIONS,,,,,01/03/2011,11489,595,REVENUE,REDACTED
Gosport Borough Council,,HOUSING SERVICES,H4-3,,,,ENERGY COSTS,,,,,30/03/2011,12807,1002.55,REVENUE,British Gas Business
Gosport Borough Council,,HOUSING SERVICES,H4-3,,,,GRANTS AND SUBSCRIPTIONS,,,,,29/03/2011,12768,556.25,REVENUE,REDACTED
Gosport Borough Council,,HOUSING SERVICES,H4-3,,,,GRANTS AND SUBSCRIPTIONS,,,,,29/03/2011,12827,667.5,REVENUE,REDACTED
Gosport Borough Council,,HOUSING SERVICES,H4-3,,,,GRANTS AND SUBSCRIPTIONS,,,,,29/03/2011,12829,556,REVENUE,REDACTED
Gosport Borough Council,,HOUSING SERVICES,H4-3,,,,GRANTS AND SUBSCRIPTIONS,,,,,29/03/2011,12828,890,REVENUE,REDACTED
Gosport Borough Council,,HOUSING SERVICES,H4-3,,,,GRANTS AND SUBSCRIPTIONS,,,,,29/03/2011,12830,445,REVENUE,REDACTED
Gosport Borough Council,,HOUSING SERVICES,H4-3,,,,GRANTS AND SUBSCRIPTIONS,,,,,29/03/2011,12771,550,REVENUE,Brite-Move
Gosport Borough Council,,HOUSING SERVICES,H4-3,,,,GRANTS AND SUBSCRIPTIONS,,,,,29/03/2011,12773,575,REVENUE,Brite-Move
Gosport Borough Council,,HOUSING SERVICES,H4-3,,,,GRANTS AND SUBSCRIPTIONS,,,,,29/03/2011,12774,695,REVENUE,Brite-Move
Gosport Borough Council,,HOUSING SERVICES,H4-3,,,,GRANTS AND SUBSCRIPTIONS,,,,,29/03/2011,12775,780,REVENUE,Brite-Move
Gosport Borough Council,,HOUSING SERVICES,H4-3,,,,GRANTS AND SUBSCRIPTIONS,,,,,29/03/2011,12772,499.98,REVENUE,Brite-Move
Gosport Borough Council,,HOUSING SERVICES,H4-3,,,,GRANTS AND SUBSCRIPTIONS,,,,,29/03/2011,12776,422.75,REVENUE,REDACTED
Gosport Borough Council,,HOUSING SERVICES,H4-3,,,,GRANTS AND SUBSCRIPTIONS,,,,,29/03/2011,12777,533.34,REVENUE,REDACTED
Gosport Borough Council,,HOUSING SERVICES,H4-3,,,,GRANTS AND SUBSCRIPTIONS,,,,,29/03/2011,12778,436.1,REVENUE,REDACTED
Gosport Borough Council,,HOUSING SERVICES,H4-3,,,,GRANTS AND SUBSCRIPTIONS,,,,,29/03/2011,12779,578.5,REVENUE,REDACTED
Gosport Borough Council,,HOUSING SERVICES,H4-3,,,,GRANTS AND SUBSCRIPTIONS,,,,,29/03/2011,12782,499.98,REVENUE,David Seymour & Associates
Gosport Borough Council,,HOUSING SERVICES,H4-3,,,,GRANTS AND SUBSCRIPTIONS,,,,,29/03/2011,12793,495,REVENUE,David Seymour & Associates
Gosport Borough Council,,HOUSING SERVICES,H4-3,,,,GRANTS AND SUBSCRIPTIONS,,,,,29/03/2011,12780,550,REVENUE,David Seymour & Associates
Gosport Borough Council,,HOUSING SERVICES,H4-3,,,,GRANTS AND SUBSCRIPTIONS,,,,,10/03/2011,11876,566.1,REVENUE,David Seymour & Associates
Gosport Borough Council,,HOUSING SERVICES,H4-3,,,,GRANTS AND SUBSCRIPTIONS,,,,,17/03/2011,12597,429.45,REVENUE,David Seymour & Associates
Gosport Borough Council,,HOUSING SERVICES,H4-3,,,,GRANTS AND SUBSCRIPTIONS,,,,,10/03/2011,11870,585.62,REVENUE,David Seymour & Associates
Gosport Borough Council,,HOUSING SERVICES,H4-3,,,,GRANTS AND SUBSCRIPTIONS,,,,,29/03/2011,12789,593.75,REVENUE,David Seymour & Associates
Gosport Borough Council,,HOUSING SERVICES,H4-3,,,,GRANTS AND SUBSCRIPTIONS,,,,,29/03/2011,12790,593.75,REVENUE,David Seymour & Associates
Gosport Borough Council,,HOUSING SERVICES,H4-3,,,,GRANTS AND SUBSCRIPTIONS,,,,,29/03/2011,12788,593.75,REVENUE,David Seymour & Associates
Gosport Borough Council,,HOUSING SERVICES,H4-3,,,,GRANTS AND SUBSCRIPTIONS,,,,,03/03/2011,11522,631.48,REVENUE,David Seymour & Associates
Gosport Borough Council,,HOUSING SERVICES,H4-3,,,,GRANTS AND SUBSCRIPTIONS,,,,,29/03/2011,12783,575,REVENUE,David Seymour & Associates
Gosport Borough Council,,HOUSING SERVICES,H4-3,,,,GRANTS AND SUBSCRIPTIONS,,,,,29/03/2011,12796,675,REVENUE,David Seymour & Associates
Gosport Borough Council,,HOUSING SERVICES,H4-3,,,,GRANTS AND SUBSCRIPTIONS,,,,,29/03/2011,12786,499.98,REVENUE,David Seymour & Associates
Gosport Borough Council,,HOUSING SERVICES,H4-3,,,,GRANTS AND SUBSCRIPTIONS,,,,,29/03/2011,12784,667.51,REVENUE,David Seymour & Associates
Gosport Borough Council,,HOUSING SERVICES,H4-3,,,,GRANTS AND SUBSCRIPTIONS,,,,,29/03/2011,12785,593.75,REVENUE,David Seymour & Associates
Gosport Borough Council,,HOUSING SERVICES,H4-3,,,,GRANTS AND SUBSCRIPTIONS,,,,,29/03/2011,12781,498.63,REVENUE,David Seymour & Associates
Gosport Borough Council,,HOUSING SERVICES,H4-3,,,,GRANTS AND SUBSCRIPTIONS,,,,,29/03/2011,12795,574.99,REVENUE,David Seymour & Associates
Gosport Borough Council,,HOUSING SERVICES,H4-3,,,,GRANTS AND SUBSCRIPTIONS,,,,,29/03/2011,12791,574.99,REVENUE,David Seymour & Associates
Gosport Borough Council,,HOUSING SERVICES,H4-3,,,,GRANTS AND SUBSCRIPTIONS,,,,,29/03/2011,12792,574.99,REVENUE,David Seymour & Associates
Gosport Borough Council,,HOUSING SERVICES,H4-3,,,,GRANTS AND SUBSCRIPTIONS,,,,,29/03/2011,12805,1328.9,REVENUE,Elite Property Management
Gosport Borough Council,,HOUSING SERVICES,H4-3,,,,GRANTS AND SUBSCRIPTIONS,,,,,29/03/2011,12811,645,REVENUE,Fine Cars (Lee On Solent) Ltd
Gosport Borough Council,,HOUSING SERVICES,H4-3,,,,GRANTS AND SUBSCRIPTIONS,,,,,29/03/2011,12797,556.25,REVENUE,REDACTED
Gosport Borough Council,,HOUSING SERVICES,H4-3,,,,GRANTS AND SUBSCRIPTIONS,,,,,29/03/2011,12814,626.36,REVENUE,REDACTED
Gosport Borough Council,,HOUSING SERVICES,H4-3,,,,GRANTS AND SUBSCRIPTIONS,,,,,29/03/2011,12824,555.59,REVENUE,REDACTED
Gosport Borough Council,,HOUSING SERVICES,H4-3,,,,GRANTS AND SUBSCRIPTIONS,,,,,29/03/2011,12825,445,REVENUE,REDACTED
Gosport Borough Council,,HOUSING SERVICES,H4-3,,,,GRANTS AND SUBSCRIPTIONS,,,,,29/03/2011,12826,556.25,REVENUE,REDACTED
Gosport Borough Council,,HOUSING SERVICES,H4-3,,,,GRANTS AND SUBSCRIPTIONS,,,,,29/03/2011,12831,619,REVENUE,REDACTED
Gosport Borough Council,,HOUSING SERVICES,H4-3,,,,GRANTS AND SUBSCRIPTIONS,,,,,29/03/2011,12833,665,REVENUE,Miller Building Management
Gosport Borough Council,,HOUSING SERVICES,H4-3,,,,GRANTS AND SUBSCRIPTIONS,,,,,29/03/2011,12832,667.51,REVENUE,Miller Building Management
Gosport Borough Council,,HOUSING SERVICES,H4-3,,,,GRANTS AND SUBSCRIPTIONS,,,,,29/03/2011,12819,593.75,REVENUE,REDACTED
Gosport Borough Council,,HOUSING SERVICES,H4-3,,,,GRANTS AND SUBSCRIPTIONS,,,,,29/03/2011,12817,650,REVENUE,REDACTED
Gosport Borough Council,,HOUSING SERVICES,H4-3,,,,GRANTS AND SUBSCRIPTIONS,,,,,29/03/2011,12809,554.74,REVENUE,REDACTED
Gosport Borough Council,,HOUSING SERVICES,H4-3,,,,GRANTS AND SUBSCRIPTIONS,,,,,29/03/2011,12834,558.17,REVENUE,REDACTED
Gosport Borough Council,,HOUSING SERVICES,H4-3,,,,GRANTS AND SUBSCRIPTIONS,,,,,29/03/2011,12835,569.4,REVENUE,REDACTED
Gosport Borough Council,,HOUSING SERVICES,H4-3,,,,GRANTS AND SUBSCRIPTIONS,,,,,29/03/2011,12840,655.78,REVENUE,REDACTED
Gosport Borough Council,,HOUSING SERVICES,H4-3,,,,GRANTS AND SUBSCRIPTIONS,,,,,29/03/2011,12838,655.78,REVENUE,REDACTED
Gosport Borough Council,,HOUSING SERVICES,H4-3,,,,GRANTS AND SUBSCRIPTIONS,,,,,29/03/2011,12839,665,REVENUE,REDACTED
Gosport Borough Council,,HOUSING SERVICES,H4-3,,,,GRANTS AND SUBSCRIPTIONS,,,,,29/03/2011,12841,667.51,REVENUE,REDACTED
Gosport Borough Council,,HOUSING SERVICES,H4-3,,,,GRANTS AND SUBSCRIPTIONS,,,,,29/03/2011,12842,637.22,REVENUE,REDACTED
Gosport Borough Council,,HOUSING SERVICES,H4-3,,,,GRANTS AND SUBSCRIPTIONS,,,,,29/03/2011,12798,645.01,REVENUE,REDACTED
Gosport Borough Council,,HOUSING SERVICES,H4-3,,,,GRANTS AND SUBSCRIPTIONS,,,,,29/03/2011,12843,556.25,REVENUE,REDACTED
Gosport Borough Council,,HOUSING SERVICES,H4-3,,,,GRANTS AND SUBSCRIPTIONS,,,,,29/03/2011,12844,525,REVENUE,REDACTED
Gosport Borough Council,,HOUSING SERVICES,H4-3,,,,GRANTS AND SUBSCRIPTIONS,,,,,29/03/2011,12846,593.75,REVENUE,REDACTED
Gosport Borough Council,,HOUSING SERVICES,H4-3,,,,GRANTS AND SUBSCRIPTIONS,,,,,29/03/2011,12848,556.25,REVENUE,REDACTED
Gosport Borough Council,,HOUSING SERVICES,H4-3,,,,GRANTS AND SUBSCRIPTIONS,,,,,29/03/2011,12813,945.12,REVENUE,REDACTED
Gosport Borough Council,,HOUSING SERVICES,H4-3,,,,GRANTS AND SUBSCRIPTIONS,,,,,29/03/2011,12810,445,REVENUE,REDACTED
Gosport Borough Council,,HOUSING SERVICES,H4-3,,,,GRANTS AND SUBSCRIPTIONS,,,,,29/03/2011,12850,609.65,REVENUE,REDACTED
Gosport Borough Council,,HOUSING SERVICES,H4-3,,,,GRANTS AND SUBSCRIPTIONS,,,,,29/03/2011,12851,445,REVENUE,REDACTED
Gosport Borough Council,,HOUSING SERVICES,H4-3,,,,GRANTS AND SUBSCRIPTIONS,,,,,29/03/2011,12852,445,REVENUE,REDACTED
Gosport Borough Council,,HOUSING SERVICES,H4-3,,,,GRANTS AND SUBSCRIPTIONS,,,,,29/03/2011,12853,445,REVENUE,REDACTED
Gosport Borough Council,,HOUSING SERVICES,H4-3,,,,GRANTS AND SUBSCRIPTIONS,,,,,29/03/2011,12854,667.5,REVENUE,REDACTED
Gosport Borough Council,,HOUSING SERVICES,H4-3,,,,GRANTS AND SUBSCRIPTIONS,,,,,29/03/2011,12855,667.51,REVENUE,REDACTED
Gosport Borough Council,,HOUSING SERVICES,H4-3,,,,GRANTS AND SUBSCRIPTIONS,,,,,29/03/2011,12856,536,REVENUE,REDACTED
Gosport Borough Council,,HOUSING SERVICES,H4-3,,,,GRANTS AND SUBSCRIPTIONS,,,,,29/03/2011,12857,540.97,REVENUE,REDACTED
Gosport Borough Council,,HOUSING SERVICES,H4-3,,,,GRANTS AND SUBSCRIPTIONS,,,,,29/03/2011,12862,529,REVENUE,REDACTED
Gosport Borough Council,,HOUSING SERVICES,H4-3,,,,GRANTS AND SUBSCRIPTIONS,,,,,29/03/2011,12863,562.5,REVENUE,REDACTED
Gosport Borough Council,,HOUSING SERVICES,H4-3,,,,GRANTS AND SUBSCRIPTIONS,,,,,29/03/2011,12860,532.5,REVENUE,REDACTED
Gosport Borough Council,,HOUSING SERVICES,H4-3,,,,GRANTS AND SUBSCRIPTIONS,,,,,29/03/2011,12864,556.25,REVENUE,REDACTED
Gosport Borough Council,,HOUSING SERVICES,H4-3,,,,GRANTS AND SUBSCRIPTIONS,,,,,29/03/2011,12865,556.25,REVENUE,REDACTED
Gosport Borough Council,,HOUSING SERVICES,H4-3,,,,GRANTS AND SUBSCRIPTIONS,,,,,29/03/2011,12807,556.25,REVENUE,REDACTED
Gosport Borough Council,,HOUSING SERVICES,H4-3,,,,GRANTS AND SUBSCRIPTIONS,,,,,29/03/2011,12866,554.74,REVENUE,REDACTED
Gosport Borough Council,,HOUSING SERVICES,H4-3,,,,GRANTS AND SUBSCRIPTIONS,,,,,29/03/2011,12867,556.25,REVENUE,REDACTED
Gosport Borough Council,,HOUSING SERVICES,H4-3,,,,GRANTS AND SUBSCRIPTIONS,,,,,29/03/2011,12801,850,REVENUE,REDACTED
Gosport Borough Council,,HOUSING SERVICES,H4-3,,,,GRANTS AND SUBSCRIPTIONS,,,,,29/03/2011,12802,850,REVENUE,REDACTED
Gosport Borough Council,,HOUSING SERVICES,H4-3,,,,GRANTS AND SUBSCRIPTIONS,,,,,29/03/2011,12869,445,REVENUE,REDACTED
Gosport Borough Council,,HOUSING SERVICES,H4-3,,,,GRANTS AND SUBSCRIPTIONS,,,,,29/03/2011,12868,445,REVENUE,REDACTED
Gosport Borough Council,,HOUSING SERVICES,H4-3,,,,GRANTS AND SUBSCRIPTIONS,,,,,29/03/2011,12871,556.25,REVENUE,REDACTED
Gosport Borough Council,,HOUSING SERVICES,H4-3,,,,GRANTS AND SUBSCRIPTIONS,,,,,29/03/2011,12873,655.78,REVENUE,REDACTED
Gosport Borough Council,,HOUSING SERVICES,H4-3,,,,GRANTS AND SUBSCRIPTIONS,,,,,29/03/2011,12872,667.51,REVENUE,REDACTED
Gosport Borough Council,,HOUSING SERVICES,H4-3,,,,GRANTS AND SUBSCRIPTIONS,,,,,29/03/2011,12874,625,REVENUE,REDACTED
Gosport Borough Council,,HOUSING SERVICES,H4-3,,,,GRANTS AND SUBSCRIPTIONS,,,,,29/03/2011,12816,582.5,REVENUE,REDACTED
Gosport Borough Council,,HOUSING SERVICES,H4-3,,,,GRANTS AND SUBSCRIPTIONS,,,,,29/03/2011,12875,590,REVENUE,REDACTED
Gosport Borough Council,,HOUSING SERVICES,H4-3,,,,GRANTS AND SUBSCRIPTIONS,,,,,29/03/2011,12876,499.98,REVENUE,REDACTED
Gosport Borough Council,,HOUSING SERVICES,H4-3,,,,GRANTS AND SUBSCRIPTIONS,,,,,29/03/2011,12877,556.25,REVENUE,REDACTED
Gosport Borough Council,,HOUSING SERVICES,H4-3,,,,GRANTS AND SUBSCRIPTIONS,,,,,29/03/2011,12880,560,REVENUE,REDACTED
Gosport Borough Council,,HOUSING SERVICES,H4-3,,,,GRANTS AND SUBSCRIPTIONS,,,,,29/03/2011,12879,556.25,REVENUE,REDACTED
Gosport Borough Council,,HOUSING SERVICES,H4-3,,,,GRANTS AND SUBSCRIPTIONS,,,,,29/03/2011,12881,667.51,REVENUE,REDACTED
Gosport Borough Council,,HOUSING SERVICES,H4-3,,,,GRANTS AND SUBSCRIPTIONS,,,,,29/03/2011,12878,636.84,REVENUE,REDACTED
Gosport Borough Council,,HOUSING SERVICES,H4-3,,,,GRANTS AND SUBSCRIPTIONS,,,,,30/03/2011,13054,961.53,REVENUE,REDACTED
Gosport Borough Council,,HOUSING SERVICES,H4-3,,,,GRANTS AND SUBSCRIPTIONS,,,,,30/03/2011,13056,961.53,REVENUE,REDACTED
Gosport Borough Council,,HOUSING SERVICES,H4-3,,,,GRANTS AND SUBSCRIPTIONS,,,,,30/03/2011,13050,961.54,REVENUE,REDACTED
Gosport Borough Council,,HOUSING SERVICES,H4-3,,,,GRANTS AND SUBSCRIPTIONS,,,,,30/03/2011,13051,961.54,REVENUE,REDACTED
Gosport Borough Council,,HOUSING SERVICES,H4-3,,,,GRANTS AND SUBSCRIPTIONS,,,,,30/03/2011,13049,961.54,REVENUE,REDACTED
Gosport Borough Council,,HOUSING SERVICES,H4-3,,,,GRANTS AND SUBSCRIPTIONS,,,,,30/03/2011,13052,961.54,REVENUE,REDACTED
Gosport Borough Council,,HOUSING SERVICES,H4-3,,,,GRANTS AND SUBSCRIPTIONS,,,,,30/03/2011,13053,961.54,REVENUE,REDACTED
Gosport Borough Council,,HOUSING SERVICES,H4-3,,,,GRANTS AND SUBSCRIPTIONS,,,,,30/03/2011,13061,961.54,REVENUE,REDACTED
Gosport Borough Council,,HOUSING SERVICES,H4-3,,,,GRANTS AND SUBSCRIPTIONS,,,,,30/03/2011,13057,961.54,REVENUE,REDACTED
Gosport Borough Council,,HOUSING SERVICES,H4-3,,,,GRANTS AND SUBSCRIPTIONS,,,,,30/03/2011,13058,961.54,REVENUE,REDACTED
Gosport Borough Council,,HOUSING SERVICES,H4-3,,,,GRANTS AND SUBSCRIPTIONS,,,,,30/03/2011,13059,961.54,REVENUE,REDACTED
Gosport Borough Council,,HOUSING SERVICES,H4-3,,,,GRANTS AND SUBSCRIPTIONS,,,,,30/03/2011,13060,961.54,REVENUE,REDACTED
Gosport Borough Council,,HOUSING SERVICES,H4-3,,,,GRANTS AND SUBSCRIPTIONS,,,,,30/03/2011,13055,961.54,REVENUE,REDACTED
Gosport Borough Council,,HOUSING SERVICES,H4-3,,,,GRANTS AND SUBSCRIPTIONS,,,,,29/03/2011,12882,534,REVENUE,REDACTED
Gosport Borough Council,,HOUSING SERVICES,H4-3,,,,GRANTS AND SUBSCRIPTIONS,,,,,29/03/2011,12883,630,REVENUE,REDACTED
Gosport Borough Council,,HOUSING SERVICES,H4-3,,,,GRANTS AND SUBSCRIPTIONS,,,,,03/03/2011,11660,667.51,REVENUE,REDACTED
Gosport Borough Council,,HOUSING SERVICES,H4-3,,,,GRANTS AND SUBSCRIPTIONS,,,,,29/03/2011,12821,667.51,REVENUE,REDACTED
Gosport Borough Council,,HOUSING SERVICES,H4-3,,,,GRANTS AND SUBSCRIPTIONS,,,,,29/03/2011,12884,621.81,REVENUE,REDACTED
Gosport Borough Council,,HOUSING SERVICES,H4-3,,,,GRANTS AND SUBSCRIPTIONS,,,,,29/03/2011,12887,556.25,REVENUE,REDACTED
Gosport Borough Council,,HOUSING SERVICES,H4-3,,,,GRANTS AND SUBSCRIPTIONS,,,,,29/03/2011,12885,565,REVENUE,REDACTED
Gosport Borough Council,,HOUSING SERVICES,H4-3,,,,GRANTS AND SUBSCRIPTIONS,,,,,29/03/2011,12886,511.75,REVENUE,REDACTED
Gosport Borough Council,,HOUSING SERVICES,H4-3,,,,GRANTS AND SUBSCRIPTIONS,,,,,29/03/2011,12822,861.61,REVENUE,REDACTED
Gosport Borough Council,,HOUSING SERVICES,H4-3,,,,GRANTS AND SUBSCRIPTIONS,,,,,29/03/2011,12888,605,REVENUE,REDACTED
Gosport Borough Council,,HOUSING SERVICES,H4-3,,,,GRANTS AND SUBSCRIPTIONS,,,,,29/03/2011,12889,556.25,REVENUE,REDACTED
Gosport Borough Council,,HOUSING SERVICES,H4-3,,,,GRANTS AND SUBSCRIPTIONS,,,,,29/03/2011,12823,1295.89,REVENUE,REDACTED
Gosport Borough Council,,HOUSING SERVICES,H4-3,,,,GRANTS AND SUBSCRIPTIONS,,,,,29/03/2011,12890,667.51,REVENUE,REDACTED
Gosport Borough Council,,HOUSING SERVICES,H4-3,,,,GRANTS AND SUBSCRIPTIONS,,,,,29/03/2011,12892,558.18,REVENUE,REDACTED
Gosport Borough Council,,HOUSING SERVICES,H4-3,,,,GRANTS AND SUBSCRIPTIONS,,,,,29/03/2011,12893,580.9,REVENUE,REDACTED
Gosport Borough Council,,HOUSING SERVICES,H4-3,,,,GRANTS AND SUBSCRIPTIONS,,,,,29/03/2011,12808,945.12,REVENUE,REDACTED
Gosport Borough Council,,HOUSING SERVICES,H4-3,,,,GRANTS AND SUBSCRIPTIONS,,,,,29/03/2011,12895,445,REVENUE,REDACTED
Gosport Borough Council,,HOUSING SERVICES,H4-3,,,,GRANTS AND SUBSCRIPTIONS,,,,,29/03/2011,12894,667.51,REVENUE,REDACTED
Gosport Borough Council,,HOUSING SERVICES,H4-3,,,,GRANTS AND SUBSCRIPTIONS,,,,,29/03/2011,12896,664.35,REVENUE,REDACTED
Gosport Borough Council,,HOUSING SERVICES,H4-3,,,,GRANTS AND SUBSCRIPTIONS,,,,,29/03/2011,12898,645.25,REVENUE,REDACTED
Gosport Borough Council,,HOUSING SERVICES,H4-3,,,,GRANTS AND SUBSCRIPTIONS,,,,,29/03/2011,12899,556,REVENUE,REDACTED
Gosport Borough Council,,HOUSING SERVICES,H4-3,,,,GRANTS AND SUBSCRIPTIONS,,,,,29/03/2011,12900,621.31,REVENUE,REDACTED
Gosport Borough Council,,HOUSING SERVICES,H4-3,,,,GRANTS AND SUBSCRIPTIONS,,,,,29/03/2011,12901,620,REVENUE,REDACTED
Gosport Borough Council,,HOUSING SERVICES,H4-3,,,,GRANTS AND SUBSCRIPTIONS,,,,,29/03/2011,12902,593.75,REVENUE,REDACTED
Gosport Borough Council,,HOUSING SERVICES,H4-3,,,,GRANTS AND SUBSCRIPTIONS,,,,,29/03/2011,12903,667.51,REVENUE,REDACTED
Gosport Borough Council,,HOUSING SERVICES,H4-3,,,,GRANTS AND SUBSCRIPTIONS,,,,,29/03/2011,12815,592.14,REVENUE,REDACTED
Gosport Borough Council,,HOUSING SERVICES,H4-3,,,,GRANTS AND SUBSCRIPTIONS,,,,,29/03/2011,12904,626.36,REVENUE,REDACTED
Gosport Borough Council,,HOUSING SERVICES,H4-3,,,,GRANTS AND SUBSCRIPTIONS,,,,,29/03/2011,12905,630,REVENUE,REDACTED
Gosport Borough Council,,HOUSING SERVICES,H4-3,,,,GRANTS AND SUBSCRIPTIONS,,,,,03/03/2011,11661,516.42,REVENUE,REDACTED
Gosport Borough Council,,HOUSING SERVICES,H4-3,,,,GRANTS AND SUBSCRIPTIONS,,,,,29/03/2011,12906,495,REVENUE,REDACTED
Gosport Borough Council,,HOUSING SERVICES,H4-3,,,,GRANTS AND SUBSCRIPTIONS,,,,,29/03/2011,12908,499.98,REVENUE,REDACTED
Gosport Borough Council,,HOUSING SERVICES,H4-3,,,,GRANTS AND SUBSCRIPTIONS,,,,,29/03/2011,12907,800,REVENUE,REDACTED
Gosport Borough Council,,HOUSING SERVICES,H4-3,,,,GRANTS AND SUBSCRIPTIONS,,,,,29/03/2011,12909,580,REVENUE,REDACTED
Gosport Borough Council,,HOUSING SERVICES,H4-3,,,,GRANTS AND SUBSCRIPTIONS,,,,,29/03/2011,12911,1062.53,REVENUE,REDACTED
Gosport Borough Council,,HOUSING SERVICES,H4-3,,,,GRANTS AND SUBSCRIPTIONS,,,,,29/03/2011,12912,511.75,REVENUE,REDACTED
Gosport Borough Council,,HOUSING SERVICES,H4-3,,,,GRANTS AND SUBSCRIPTIONS,,,,,29/03/2011,12806,655.01,REVENUE,REDACTED
Gosport Borough Council,,HOUSING SERVICES,H4-3,,,,GRANTS AND SUBSCRIPTIONS,,,,,29/03/2011,12913,578.5,REVENUE,REDACTED
Gosport Borough Council,,HOUSING SERVICES,H4-3,,,,GRANTS AND SUBSCRIPTIONS,,,,,29/03/2011,12914,649.09,REVENUE,REDACTED
Gosport Borough Council,,HOUSING SERVICES,H4-3,,,,GRANTS AND SUBSCRIPTIONS,,,,,29/03/2011,12915,600,REVENUE,REDACTED
Gosport Borough Council,,HOUSING SERVICES,H4-3,,,,GRANTS AND SUBSCRIPTIONS,,,,,29/03/2011,12917,906.08,REVENUE,REDACTED
Gosport Borough Council,,HOUSING SERVICES,H4-3,,,,GRANTS AND SUBSCRIPTIONS,,,,,29/03/2011,12918,556.25,REVENUE,REDACTED
Gosport Borough Council,,HOUSING SERVICES,H4-3,,,,GRANTS AND SUBSCRIPTIONS,,,,,29/03/2011,12919,556.25,REVENUE,REDACTED
Gosport Borough Council,,HOUSING SERVICES,H4-3,,,,GRANTS AND SUBSCRIPTIONS,,,,,29/03/2011,12920,593.75,REVENUE,REDACTED
Gosport Borough Council,,HOUSING SERVICES,H4-3,,,,GRANTS AND SUBSCRIPTIONS,,,,,29/03/2011,12818,593.75,REVENUE,REDACTED
Gosport Borough Council,,HOUSING SERVICES,H4-3,,,,GRANTS AND SUBSCRIPTIONS,,,,,29/03/2011,12921,630,REVENUE,REDACTED
Gosport Borough Council,,HOUSING SERVICES,H4-3,,,,GRANTS AND SUBSCRIPTIONS,,,,,29/03/2011,12923,650,REVENUE,REDACTED
Gosport Borough Council,,HOUSING SERVICES,H4-3,,,,GRANTS AND SUBSCRIPTIONS,,,,,29/03/2011,12924,665.66,REVENUE,REDACTED
Gosport Borough Council,,HOUSING SERVICES,H4-3,,,,GRANTS AND SUBSCRIPTIONS,,,,,29/03/2011,12925,615,REVENUE,REDACTED
Gosport Borough Council,,HOUSING SERVICES,H4-3,,,,GRANTS AND SUBSCRIPTIONS,,,,,29/03/2011,12926,450,REVENUE,REDACTED
Gosport Borough Council,,HOUSING SERVICES,H4-3,,,,GRANTS AND SUBSCRIPTIONS,,,,,29/03/2011,12927,445,REVENUE,REDACTED
Gosport Borough Council,,HOUSING SERVICES,H4-3,,,,GRANTS AND SUBSCRIPTIONS,,,,,29/03/2011,12928,580.9,REVENUE,REDACTED
Gosport Borough Council,,HOUSING SERVICES,H4-3,,,,GRANTS AND SUBSCRIPTIONS,,,,,29/03/2011,12812,667.51,REVENUE,REDACTED
Gosport Borough Council,,HOUSING SERVICES,H4-3,,,,GRANTS AND SUBSCRIPTIONS,,,,,29/03/2011,12929,556.25,REVENUE,REDACTED
Gosport Borough Council,,HOUSING SERVICES,H4-3,,,,GRANTS AND SUBSCRIPTIONS,,,,,29/03/2011,12800,556.25,REVENUE,REDACTED
Gosport Borough Council,,HOUSING SERVICES,H4-3,,,,GRANTS AND SUBSCRIPTIONS,,,,,29/03/2011,12799,529.25,REVENUE,REDACTED
Gosport Borough Council,,HOUSING SERVICES,H4-3,,,,GRANTS AND SUBSCRIPTIONS,,,,,29/03/2011,12930,585.52,REVENUE,REDACTED
Gosport Borough Council,,HOUSING SERVICES,H4-3,,,,GRANTS AND SUBSCRIPTIONS,,,,,29/03/2011,12803,493.77,REVENUE,REDACTED
Gosport Borough Council,,HOUSING SERVICES,H4-3,,,,GRANTS AND SUBSCRIPTIONS,,,,,29/03/2011,12931,556.25,REVENUE,REDACTED
Gosport Borough Council,,HOUSING SERVICES,H4-3,,,,GRANTS AND SUBSCRIPTIONS,,,,,29/03/2011,12766,556.25,REVENUE,REDACTED
Gosport Borough Council,,HOUSING SERVICES,H4-3,,,,GRANTS AND SUBSCRIPTIONS,,,,,29/03/2011,12767,763.15,REVENUE,Stoke Gardens Guest Houses
Gosport Borough Council,,HOUSING SERVICES,H4-3,,,,GRANTS AND SUBSCRIPTIONS,,,,,29/03/2011,12769,534,REVENUE,REDACTED
Gosport Borough Council,,HOUSING SERVICES,H4-3,,,,GRANTS AND SUBSCRIPTIONS,,,,,29/03/2011,12770,520.65,REVENUE,Way Ahead Solutions Ltd
Gosport Borough Council,,HOUSING SERVICES,H4-3,,,,MISCELLANEOUS EXPENSES,,,,,03/03/2011,11607,590,REVENUE,REDACTED
Gosport Borough Council,,HOUSING SERVICES,H4-3,,,,MISCELLANEOUS EXPENSES,,,,,24/03/2011,12574,803,REVENUE,REDACTED
Gosport Borough Council,,HOUSING SERVICES,H4-3,,,,MISCELLANEOUS EXPENSES,,,,,24/03/2011,12571,500,REVENUE,REDACTED
Gosport Borough Council,,HOUSING SERVICES,H4-3,,,,GRANTS AND SUBSCRIPTIONS,,,,,30/03/2011,12921,679.2,REVENUE,Franklin Property Services
Gosport Borough Council,,HOUSING SERVICES,H4-3,,,,MISCELLANEOUS EXPENSES,,,,,10/03/2011,11523,550,REVENUE,Elite Property Management
Gosport Borough Council,,HOUSING SERVICES,H4-3,,,,MISCELLANEOUS EXPENSES,,,,,14/03/2011,12078,550,REVENUE,Letco
Gosport Borough Council,,CENTRAL SERVICES TO THE PUBLIC,H4-5,,,,INDEPENDENT UNITS IN COUNCIL,,,,,17/03/2011,12250,1134,REVENUE,Hampshire County Council
Gosport Borough Council,,CENTRAL SERVICES TO THE PUBLIC,H4-5,,,,INDEPENDENT UNITS IN COUNCIL,,,,,17/03/2011,12126,935.11,REVENUE,Fareham Borough Council
Gosport Borough Council,,HOUSING SERVICES,H4-3,,,,GROUNDS MAINTENANCE COSTS,,,,,24/03/2011,12449,840,REVENUE,Cliff Phillips Landscapes
Gosport Borough Council,,HOUSING SERVICES,H4-3,,,,HOUSING BENEFITS,,,,,30/03/2011,689,1438701.42,REVENUE,Benefit Rent Allowance
Gosport Borough Council,,"CULTURAL, ENV AND PLANNING",H4-1,,,,MISCELLANEOUS EXPENSES,,,,,30/03/2011,12900,600,REVENUE,Bay Media
Gosport Borough Council,,UNAPPORTIONABLE CENTRAL O/H,H4-6,,,,MISCELLANEOUS EXPENSES,,,,,17/03/2011,12293,1500,REVENUE,The Agency
Gosport Borough Council,,"CULTURAL, ENV AND PLANNING",H4-1,,,,MISCELLANEOUS EXPENSES,,,,,30/03/2011,12901,144,REVENUE,Siteline Ltd
Gosport Borough Council,,"CULTURAL, ENV AND PLANNING",H4-1,,,,MISCELLANEOUS EXPENSES,,,,,30/03/2011,12862,31,REVENUE,Bridgemary Community College
Gosport Borough Council,,"CULTURAL, ENV AND PLANNING",H4-1,,,,MISCELLANEOUS EXPENSES,,,,,30/03/2011,12800,150,REVENUE,Gosport Business Centre
Gosport Borough Council,,"CULTURAL, ENV AND PLANNING",H4-1,,,,MISCELLANEOUS EXPENSES,,,,,10/03/2011,11773,1176,REVENUE,St Vincent College
Gosport Borough Council,,"CULTURAL, ENV AND PLANNING",H4-1,,,,MISCELLANEOUS EXPENSES,,,,,10/03/2011,11920,1411.2,REVENUE,T Class Security Limited
Gosport Borough Council,,"CULTURAL, ENV AND PLANNING",H4-1,,,,MISCELLANEOUS EXPENSES,,,,,30/03/2011,12799,114,REVENUE,The Agency
Gosport Borough Council,,"CULTURAL, ENV AND PLANNING",H4-1,,,,MISCELLANEOUS EXPENSES,,,,,10/03/2011,11922,624,REVENUE,Positive Media Promotions Ltd
Gosport Borough Council,,"CULTURAL, ENV AND PLANNING",H4-1,,,,SERVICES,,,,,10/03/2011,11836,424.6,REVENUE,Jeffery Wood
Gosport Borough Council,,"CULTURAL, ENV AND PLANNING",H4-1,,,,INDEPENDENT UNITS IN COUNCIL,,,,,17/03/2011,12153,804,REVENUE,Chroma Vision Ltd
Gosport Borough Council,,"CULTURAL, ENV AND PLANNING",H4-1,,,,INDEPENDENT UNITS IN COUNCIL,,,,,17/03/2011,12140,5862,REVENUE,Chroma Vision Ltd
Gosport Borough Council,,"CULTURAL, ENV AND PLANNING",H4-1,,,,INDEPENDENT UNITS IN COUNCIL,,,,,10/03/2011,11772,49548.43,REVENUE,Remploy Ltd
Gosport Borough Council,,"CULTURAL, ENV AND PLANNING",H4-1,,,,INDEPENDENT UNITS IN COUNCIL,,,,,17/03/2011,12126,1183.13,REVENUE,Fareham Borough Council
Gosport Borough Council,,"CULTURAL, ENV AND PLANNING",H4-1,,,,INDEPENDENT UNITS IN COUNCIL,,,,,17/03/2011,12126,11157.85,REVENUE,Fareham Borough Council
Gosport Borough Council,,"CULTURAL, ENV AND PLANNING",H4-1,,,,MISCELLANEOUS EXPENSES,,,,,30/03/2011,12823,120,REVENUE,Technical Services
Gosport Borough Council,,"CULTURAL, ENV AND PLANNING",H4-1,,,,GRANTS AND SUBSCRIPTIONS,,,,,10/03/2011,11921,1217.25,REVENUE,REDACTED
Gosport Borough Council,,"CULTURAL, ENV AND PLANNING",H4-1,,,,GRANTS AND SUBSCRIPTIONS,,,,,17/03/2011,12281,1035,REVENUE,REDACTED
Gosport Borough Council,,"CULTURAL, ENV AND PLANNING",H4-1,,,,GRANTS AND SUBSCRIPTIONS,,,,,17/03/2011,12296,1806.75,REVENUE,REDACTED
Gosport Borough Council,,"CULTURAL, ENV AND PLANNING",H4-1,,,,GRANTS AND SUBSCRIPTIONS,,,,,03/03/2011,11545,1974.25,REVENUE,REDACTED
Gosport Borough Council,,"CULTURAL, ENV AND PLANNING",H4-1,,,,REPAIRS AND MAINT OF BUILDINGS,,,,,30/03/2011,12814,184.2,REVENUE,Gs Building Services Ltd
Gosport Borough Council,,"CULTURAL, ENV AND PLANNING",H4-1,,,,ENERGY COSTS,,,,,17/03/2011,12121,786.7,REVENUE,E.On
Gosport Borough Council,,"CULTURAL, ENV AND PLANNING",H4-1,,,,PUBLIC TRANSPORT,,,,,28/03/2011,655,59.9,REVENUE,Rsp Travel Warrants
Gosport Borough Council,,"CULTURAL, ENV AND PLANNING",H4-1,,,,GRANTS AND SUBSCRIPTIONS,,,,,30/03/2011,12853,60000,REVENUE,Portsmouth Naval Base Property Trust
Gosport Borough Council,,CENTRAL SERVICES TO THE PUBLIC,H4-5,,,,GRANTS AND SUBSCRIPTIONS,,,,,10/03/2011,11850,1000,REVENUE,7th Gosport Scout Group
Gosport Borough Council,,CENTRAL SERVICES TO THE PUBLIC,H4-5,,,,GRANTS AND SUBSCRIPTIONS,,,,,10/03/2011,11849,950,REVENUE,Alverstoke Lawn Tennis Club
Gosport Borough Council,,CENTRAL SERVICES TO THE PUBLIC,H4-5,,,,GRANTS AND SUBSCRIPTIONS,,,,,10/03/2011,11845,945,REVENUE,Big Noise Community Samba Band
Gosport Borough Council,,CENTRAL SERVICES TO THE PUBLIC,H4-5,,,,GRANTS AND SUBSCRIPTIONS,,,,,10/03/2011,11844,500,REVENUE,Friends Of Leesland Park
Gosport Borough Council,,CENTRAL SERVICES TO THE PUBLIC,H4-5,,,,GRANTS AND SUBSCRIPTIONS,,,,,10/03/2011,11842,1086,REVENUE,Gosport All Stars And Shooting Stars
Gosport Borough Council,,CENTRAL SERVICES TO THE PUBLIC,H4-5,,,,GRANTS AND SUBSCRIPTIONS,,,,,10/03/2011,11852,2000,REVENUE,Gosport Borough Youth Fc
Gosport Borough Council,,CENTRAL SERVICES TO THE PUBLIC,H4-5,,,,GRANTS AND SUBSCRIPTIONS,,,,,22/03/2011,11846,1130,REVENUE,Gosport Dolphins Swimming Club
Gosport Borough Council,,CENTRAL SERVICES TO THE PUBLIC,H4-5,,,,GRANTS AND SUBSCRIPTIONS,,,,,03/03/2011,11220,3000,REVENUE,Groundwork Solent
Gosport Borough Council,,CENTRAL SERVICES TO THE PUBLIC,H4-5,,,,GRANTS AND SUBSCRIPTIONS,,,,,24/03/2011,12584,1909.67,REVENUE,Hampshire County Council
Gosport Borough Council,,CENTRAL SERVICES TO THE PUBLIC,H4-5,,,,GRANTS AND SUBSCRIPTIONS,,,,,10/03/2011,11847,950,REVENUE,Lee On The Solent Residents Association
Gosport Borough Council,,CENTRAL SERVICES TO THE PUBLIC,H4-5,,,,GRANTS AND SUBSCRIPTIONS,,,,,10/03/2011,11848,1300,REVENUE,Rowner Bowling Club
Gosport Borough Council,,CENTRAL SERVICES TO THE PUBLIC,H4-5,,,,GRANTS AND SUBSCRIPTIONS,,,,,10/03/2011,11851,725,REVENUE,Turning The Tide
Gosport Borough Council,,CORPORATE AND DEMOCRATIC CORE,H4-4,,,,DIRECT TRANSPORT COSTS,,,,,24/03/2011,12525,35.14,REVENUE,Arval Uk Mltd
Gosport Borough Council,,CORPORATE AND DEMOCRATIC CORE,H4-4,,,,MEMBERS� ALLOWANCES,,,,,30/03/2011,12903,25,REVENUE,The Lord Mayor'S Appeal 2010/11
Gosport Borough Council,,CORPORATE AND DEMOCRATIC CORE,H4-4,,,,CATERING,,,,,10/03/2011,11894,792,REVENUE,Bezani Catering
Gosport Borough Council,,CORPORATE AND DEMOCRATIC CORE,H4-4,,,,PUBLIC TRANSPORT,,,,,28/03/2011,655,132,REVENUE,Rsp Travel Warrants
Gosport Borough Council,,CORPORATE AND DEMOCRATIC CORE,H4-4,,,,"PRINTING, STAT & OFFICE EXP",,,,,30/03/2011,12887,15.9,REVENUE,Ace Office Supplies Ltd
Gosport Borough Council,,CORPORATE AND DEMOCRATIC CORE,H4-4,,,,MISCELLANEOUS EXPENSES,,,,,03/03/2011,11662,5825.4,REVENUE,Entec Uk Ltd
Gosport Borough Council,,"CULTURAL, ENV AND PLANNING",H4-1,,,,INDEPENDENT UNITS IN COUNCIL,,,,,17/03/2011,12126,962.86,REVENUE,Fareham Borough Council
Gosport Borough Council,,CENTRAL SERVICES TO THE PUBLIC,H4-5,,,,"EQUIP, FURNITURE AND MATERIALS",,,,,24/03/2011,12191,2400,REVENUE,Eaga Plc
Gosport Borough Council,,CENTRAL SERVICES TO THE PUBLIC,H4-5,,,,GRANTS AND SUBSCRIPTIONS,,,,,10/03/2011,11501,510,REVENUE,National Resilience Extranet
Gosport Borough Council,,"CULTURAL, ENV AND PLANNING",H4-1,,,,GRANTS AND SUBSCRIPTIONS,,,,,03/03/2011,11655,3000,REVENUE,Portsmouth & Gosport Joint Board
Gosport Borough Council,,CORPORATE AND DEMOCRATIC CORE,H4-4,,,,PUBLIC TRANSPORT,,,,,28/03/2011,655,43.6,REVENUE,Rsp Travel Warrants
Gosport Borough Council,,CORPORATE AND DEMOCRATIC CORE,H4-4,,,,MISCELLANEOUS EXPENSES,,,,,17/03/2011,12130,10729.2,REVENUE,Echelon Consultancy Ltd
Gosport Borough Council,,CORPORATE AND DEMOCRATIC CORE,H4-4,,,,MISCELLANEOUS EXPENSES,,,,,10/03/2011,11895,7833,REVENUE,Impart Links Limited
Gosport Borough Council,,CORPORATE AND DEMOCRATIC CORE,H4-4,,,,MISCELLANEOUS EXPENSES,,,,,17/03/2011,12129,1680,REVENUE,Echelon Consultancy Ltd
Gosport Borough Council,,CORPORATE AND DEMOCRATIC CORE,H4-4,,,,MISCELLANEOUS EXPENSES,,,,,10/03/2011,11854,6645.6,REVENUE,Trowers & Hamlins Llp
Gosport Borough Council,,CORPORATE AND DEMOCRATIC CORE,H4-4,,,,MISCELLANEOUS EXPENSES,,,,,30/03/2011,12825,18507.16,REVENUE,Trowers & Hamlins Llp
Gosport Borough Council,,CENTRAL SERVICES TO THE PUBLIC,H4-5,,,,GRANTS AND SUBSCRIPTIONS,,,,,17/03/2011,12303,1200,REVENUE,Portsmouth Harbour Renaissance Ltd
Gosport Borough Council,,CORPORATE AND DEMOCRATIC CORE,H4-4,,,,"PRINTING, STAT & OFFICE EXP",,,,,28/03/2011,646,518.93,REVENUE,Shell Gas Direct Ltd
Gosport Borough Council,,CORPORATE AND DEMOCRATIC CORE,H4-4,,,,"PRINTING, STAT & OFFICE EXP",,,,,30/03/2011,12798,71.1,REVENUE,Fareport Talking News
Gosport Borough Council,,"CULTURAL, ENV AND PLANNING",H4-1,,,,MISCELLANEOUS EXPENSES,,,,,03/03/2011,11542,850,REVENUE,Southern Co-Operatives Limited
,,CORPORATE AND DEMOCRATIC CORE,H4-4,,,,SERVICES,,,,,40619,12200,12249.6,REVENUE,Audit Commission
,,CENTRAL SERVICES TO THE PUBLIC,H4-5,,,,"EQUIP, FURNITURE AND MATERIALS",,,,,40612,11504,710.4,REVENUE,2cl Communications Ltd
,,CORPORATE AND DEMOCRATIC CORE,H4-4,,,,SERVICES,,,,,40630,637,759.85,REVENUE,Nat West
,,CORPORATE AND DEMOCRATIC CORE,H4-4,,,,SERVICES,,,,,40632,702,2880.85,REVENUE,Nat West
,,"CULTURAL, ENV AND PLANNING",H4-1,,,,MISCELLANEOUS EXPENSES,,,,,40632,12872,540,REVENUE,Hampshire County Council
,,CORPORATE AND DEMOCRATIC CORE,H4-4,,,,PUBLIC TRANSPORT,,,,,40630,655,82.8,REVENUE,Rsp Travel Warrants
,,CORPORATE AND DEMOCRATIC CORE,H4-4,,,,MISCELLANEOUS EXPENSES,,,,,40632,12810,245.1,REVENUE,Shaw & Sons Ltd
,,"CULTURAL, ENV AND PLANNING",H4-1,,,,DIRECT TRANSPORT COSTS,,,,,40626,12525,151.12,REVENUE,Arval Uk Mltd
,,UNAPPORTIONABLE CENTRAL O/H,H4-6,,,,DIRECT TRANSPORT COSTS,,,,,40626,12525,48.22,REVENUE,Arval Uk Mltd
,,UNAPPORTIONABLE CENTRAL O/H,H4-6,,,,CATERING,,,,,40632,12865,46.2,REVENUE,Varieties Catering
,,UNAPPORTIONABLE CENTRAL O/H,H4-6,,,,SERVICES,,,,,40605,11610,5760,REVENUE,Sustainable Direction Ltd
,,UNAPPORTIONABLE CENTRAL O/H,H4-6,,,,INDEPENDENT UNITS IN COUNCIL,,,,,40619,12126,155.64,REVENUE,Fareham Borough Council
,,UNAPPORTIONABLE CENTRAL O/H,H4-6,,,,DIRECT EMPLOYEE EXPENSES,,,,,40630,631,-459.56,REVENUE,A O Shipley
,,UNAPPORTIONABLE CENTRAL O/H,H4-6,,,,DIRECT EMPLOYEE EXPENSES,,,,,40605,11562,926.1,REVENUE,Fusion People Limited
,,UNAPPORTIONABLE CENTRAL O/H,H4-6,,,,DIRECT EMPLOYEE EXPENSES,,,,,40626,12479,1016.32,REVENUE,Fusion People Limited
,,UNAPPORTIONABLE CENTRAL O/H,H4-6,,,,DIRECT EMPLOYEE EXPENSES,,,,,40612,11875,1024.88,REVENUE,Fusion People Limited
,,UNAPPORTIONABLE CENTRAL O/H,H4-6,,,,DIRECT EMPLOYEE EXPENSES,,,,,40619,12135,1035.22,REVENUE,Fusion People Limited
,,UNAPPORTIONABLE CENTRAL O/H,H4-6,,,,GROUNDS MAINTENANCE COSTS,,,,,40626,11864,78.24,REVENUE,Verdant Group Plc
,,UNAPPORTIONABLE CENTRAL O/H,H4-6,,,,PUBLIC TRANSPORT,,,,,40630,655,103,REVENUE,Rsp Travel Warrants
,,UNAPPORTIONABLE CENTRAL O/H,H4-6,,,,"PRINTING, STAT & OFFICE EXP",,,,,40632,12877,71.46,REVENUE,Ace Office Supplies Ltd
,,UNAPPORTIONABLE CENTRAL O/H,H4-6,,,,"PRINTING, STAT & OFFICE EXP",,,,,40632,12777,36,REVENUE,Southern Self Drive Fareham
,,UNAPPORTIONABLE CENTRAL O/H,H4-6,,,,"PRINTING, STAT & OFFICE EXP",,,,,40632,12773,70.8,REVENUE,Southern Self Drive Fareham
,,UNAPPORTIONABLE CENTRAL O/H,H4-6,,,,PUBLIC TRANSPORT,,,,,40630,655,43.6,REVENUE,Rsp Travel Warrants
,,UNAPPORTIONABLE CENTRAL O/H,H4-6,,,,DIRECT EMPLOYEE EXPENSES,,,,,40630,631,-459.56,REVENUE,A O Shipley
,,UNAPPORTIONABLE CENTRAL O/H,H4-6,,,,GRANTS AND SUBSCRIPTIONS,,,,,40619,12288,529.74,REVENUE,REDACTED
,,UNAPPORTIONABLE CENTRAL O/H,H4-6,,,,"PRINTING, STAT & OFFICE EXP",,,,,40632,12881,28.52,REVENUE,Ace Office Supplies Ltd
,,UNAPPORTIONABLE CENTRAL O/H,H4-6,,,,"PRINTING, STAT & OFFICE EXP",,,,,40626,12426,541.08,REVENUE,Ace Office Supplies Ltd
,,UNAPPORTIONABLE CENTRAL O/H,H4-6,,,,"PRINTING, STAT & OFFICE EXP",,,,,40632,12886,192.42,REVENUE,Ace Office Supplies Ltd
,,UNAPPORTIONABLE CENTRAL O/H,H4-6,,,,"PRINTING, STAT & OFFICE EXP",,,,,40632,12783,69.6,REVENUE,Sd Displays
,,UNAPPORTIONABLE CENTRAL O/H,H4-6,,,,INDIRECT EMPLOYEE EXPENSES,,,,,40605,11543,650,REVENUE,The Open University
,,UNAPPORTIONABLE CENTRAL O/H,H4-6,,,,PUBLIC TRANSPORT,,,,,40630,655,20.6,REVENUE,Rsp Travel Warrants
,,UNAPPORTIONABLE CENTRAL O/H,H4-6,,,,CATERING,,,,,40632,12856,168,REVENUE,Portsmouth Naval Base Property Trust
,,UNAPPORTIONABLE CENTRAL O/H,H4-6,,,,"PRINTING, STAT & OFFICE EXP",,,,,40632,12912,3.62,REVENUE,Ricoh Uk Ltd
,,UNAPPORTIONABLE CENTRAL O/H,H4-6,,,,"PRINTING, STAT & OFFICE EXP",,,,,40632,12883,71.3,REVENUE,Ace Office Supplies Ltd
,,UNAPPORTIONABLE CENTRAL O/H,H4-6,,,,EXPENSES,,,,,40630,655,66,REVENUE,Rsp Travel Warrants
,,UNAPPORTIONABLE CENTRAL O/H,H4-6,,,,PUBLIC TRANSPORT,,,,,40630,655,135,REVENUE,Rsp Travel Warrants
,,UNAPPORTIONABLE CENTRAL O/H,H4-6,,,,DIRECT EMPLOYEE EXPENSES,,,,,40626,12629,32115.22,REVENUE,Hampshire County Council
,,UNAPPORTIONABLE CENTRAL O/H,H4-6,,,,PUBLIC TRANSPORT,,,,,40630,655,20.4,REVENUE,Rsp Travel Warrants
,,UNAPPORTIONABLE CENTRAL O/H,H4-6,,,,PUBLIC TRANSPORT,,,,,40630,655,7.4,REVENUE,Rsp Travel Warrants
,,UNAPPORTIONABLE CENTRAL O/H,H4-6,,,,INDIRECT EMPLOYEE EXPENSES,,,,,40632,12822,30,REVENUE,REDACTED
,,UNAPPORTIONABLE CENTRAL O/H,H4-6,,,,INDIRECT EMPLOYEE EXPENSES,,,,,40612,11835,900,REVENUE,Dale Valley Training
,,UNAPPORTIONABLE CENTRAL O/H,H4-6,,,,DIRECT TRANSPORT COSTS,,,,,40626,12525,291.32,REVENUE,Arval Uk Mltd
,,UNAPPORTIONABLE CENTRAL O/H,H4-6,,,,CONTRACT HIRE & OPER LEASES,,,,,40626,12561,2509.05,REVENUE,Lex Autolease Ltd
,,UNAPPORTIONABLE CENTRAL O/H,H4-6,,,,CONTRACT HIRE & OPER LEASES,,,,,40626,12482,3106.8,REVENUE,Lex Autolease Ltd
,,UNAPPORTIONABLE CENTRAL O/H,H4-6,,,,COMMUNICATIONS AND COMPUTING,,,,,40632,12876,72,REVENUE,Capcom Land Sea & Air Communications Ltd
,,UNAPPORTIONABLE CENTRAL O/H,H4-6,,,,DIRECT EMPLOYEE EXPENSES,,,,,40632,12802,55850.33,REVENUE,Hampshire County Council
,,UNAPPORTIONABLE CENTRAL O/H,H4-6,,,,INDIRECT EMPLOYEE EXPENSES,,,,,40632,12786,285,REVENUE,University Of West Of England
,,UNAPPORTIONABLE CENTRAL O/H,H4-6,,,,PUBLIC TRANSPORT,,,,,40630,655,67,REVENUE,Rsp Travel Warrants
,,UNAPPORTIONABLE CENTRAL O/H,H4-6,,,,GRANTS AND SUBSCRIPTIONS,,,,,40619,12268,609.6,REVENUE,British Standards Institution
,,UNAPPORTIONABLE CENTRAL O/H,H4-6,,,,PUBLIC TRANSPORT,,,,,40630,655,59.9,REVENUE,Rsp Travel Warrants
,,UNAPPORTIONABLE CENTRAL O/H,H4-6,,,,"EQUIP, FURNITURE AND MATERIALS",,,,,40619,12255,3451.5,REVENUE,Ns Systems Limited
,,UNAPPORTIONABLE CENTRAL O/H,H4-6,,,,COMMUNICATIONS AND COMPUTING,,,,,40626,12583,4752,REVENUE,Bottomline Technologies
,,UNAPPORTIONABLE CENTRAL O/H,H4-6,,,,COMMUNICATIONS AND COMPUTING,,,,,40626,12496,-816.54,REVENUE,Idox Software Ltd
,,UNAPPORTIONABLE CENTRAL O/H,H4-6,,,,COMMUNICATIONS AND COMPUTING,,,,,40626,12495,39348.58,REVENUE,Idox Software Ltd
,,UNAPPORTIONABLE CENTRAL O/H,H4-6,,,,"EQUIP, FURNITURE AND MATERIALS",,,,,40626,12470,1159.02,REVENUE,Eprint Direct Ltd
,,UNAPPORTIONABLE CENTRAL O/H,H4-6,,,,"EQUIP, FURNITURE AND MATERIALS",,,,,40626,12553,990,REVENUE,Intelligent Finishing Systems
,,UNAPPORTIONABLE CENTRAL O/H,H4-6,,,,"EQUIP, FURNITURE AND MATERIALS",,,,,40612,11776,961.2,REVENUE,Morgana Systems Ltd
,,UNAPPORTIONABLE CENTRAL O/H,H4-6,,,,"EQUIP, FURNITURE AND MATERIALS",,,,,40632,12879,14.16,REVENUE,Ace Office Supplies Ltd
,,UNAPPORTIONABLE CENTRAL O/H,H4-6,,,,"EQUIP, FURNITURE AND MATERIALS",,,,,40626,11837,-536.36,REVENUE,Elliott Baxter & Co Ltd
,,UNAPPORTIONABLE CENTRAL O/H,H4-6,,,,"EQUIP, FURNITURE AND MATERIALS",,,,,40626,11584,536.36,REVENUE,Elliott Baxter & Co Ltd
,,UNAPPORTIONABLE CENTRAL O/H,H4-6,,,,"EQUIP, FURNITURE AND MATERIALS",,,,,40605,11591,1688.74,REVENUE,Presstek Europe Ltd
,,UNAPPORTIONABLE CENTRAL O/H,H4-6,,,,"EQUIP, FURNITURE AND MATERIALS",,,,,40626,12485,506.28,REVENUE,Southern Paper Group
,,UNAPPORTIONABLE CENTRAL O/H,H4-6,,,,"EQUIP, FURNITURE AND MATERIALS",,,,,40632,12776,96.28,REVENUE,Southern Paper Group
,,UNAPPORTIONABLE CENTRAL O/H,H4-6,,,,"EQUIP, FURNITURE AND MATERIALS",,,,,40632,12774,96.28,REVENUE,Southern Paper Group
,,UNAPPORTIONABLE CENTRAL O/H,H4-6,,,,"EQUIP, FURNITURE AND MATERIALS",,,,,40632,12775,75.77,REVENUE,Southern Paper Group
,,UNAPPORTIONABLE CENTRAL O/H,H4-6,,,,"PRINTING, STAT & OFFICE EXP",,,,,40632,12782,39.58,REVENUE,Appleton Signs Manufacturing Ltd
,,UNAPPORTIONABLE CENTRAL O/H,H4-6,,,,"PRINTING, STAT & OFFICE EXP",,,,,40619,12165,4072.21,REVENUE,Ricoh Uk Ltd
,,UNAPPORTIONABLE CENTRAL O/H,H4-6,,,,DIRECT EMPLOYEE EXPENSES,,,,,40626,12630,11446.51,REVENUE,Hampshire County Council
,,UNAPPORTIONABLE CENTRAL O/H,H4-6,,,,DIRECT EMPLOYEE EXPENSES,,,,,40612,11775,6713.8,REVENUE,Hampshire Pension Fund
,,UNAPPORTIONABLE CENTRAL O/H,H4-6,,,,"EQUIP, FURNITURE AND MATERIALS",,,,,40632,12878,71.47,REVENUE,Ace Office Supplies Ltd
,,UNAPPORTIONABLE CENTRAL O/H,H4-6,,,,DIRECT EMPLOYEE EXPENSES,,,,,40605,11631,767.23,REVENUE,Portsmouth City Council
,,UNAPPORTIONABLE CENTRAL O/H,H4-6,,,,DIRECT EMPLOYEE EXPENSES,,,,,40632,12930,245.7,REVENUE,Select Appointments
,,UNAPPORTIONABLE CENTRAL O/H,H4-6,,,,DIRECT EMPLOYEE EXPENSES,,,,,40632,12931,327.6,REVENUE,Select Appointments
,,UNAPPORTIONABLE CENTRAL O/H,H4-6,,,,"EQUIP, FURNITURE AND MATERIALS",,,,,40626,12497,22070.77,REVENUE,Capita Business Services Ltd
,,UNAPPORTIONABLE CENTRAL O/H,H4-6,,,,SERVICES,,,,,40632,12934,788.1,REVENUE,Loomis Uk Ltd
,,UNAPPORTIONABLE CENTRAL O/H,H4-6,,,,DIRECT EMPLOYEE EXPENSES,,,,,40630,631,-443.09,REVENUE,A O Shipley
,,UNAPPORTIONABLE CENTRAL O/H,H4-6,,,,"PRINTING, STAT & OFFICE EXP",,,,,40632,12882,14.69,REVENUE,Ace Office Supplies Ltd
,,UNAPPORTIONABLE CENTRAL O/H,H4-6,,,,REPAIRS AND MAINT OF BUILDINGS,,,,,40626,12447,912,REVENUE,Jps Fire & Security Ltd
,,UNAPPORTIONABLE CENTRAL O/H,H4-6,,,,REPAIRS AND MAINT OF BUILDINGS,,,,,40612,11812,512.28,REVENUE,Lucas Windebank & Mcnally
,,UNAPPORTIONABLE CENTRAL O/H,H4-6,,,,ENERGY COSTS,,,,,40619,12139,5089.8,REVENUE,E.On
,,UNAPPORTIONABLE CENTRAL O/H,H4-6,,,,ENERGY COSTS,,,,,40630,629,1018.32,REVENUE,Smartest Energy
,,UNAPPORTIONABLE CENTRAL O/H,H4-6,,,,ENERGY COSTS,,,,,40612,11853,6687.74,REVENUE,Southern Electric
,,UNAPPORTIONABLE CENTRAL O/H,H4-6,,,,RENTS,,,,,40630,639,1995,REVENUE,M  & L Properties
,,UNAPPORTIONABLE CENTRAL O/H,H4-6,,,,FIXTURES AND FITTINGS,,,,,40626,12505,539.18,REVENUE,New-Air (Southern) Ltd
,,UNAPPORTIONABLE CENTRAL O/H,H4-6,,,,FIXTURES AND FITTINGS,,,,,40632,12929,146.26,REVENUE,Chubb Electronic Security Limited
,,UNAPPORTIONABLE CENTRAL O/H,H4-6,,,,DIRECT TRANSPORT COSTS,,,,,40626,12525,56.2,REVENUE,Arval Uk Mltd
,,UNAPPORTIONABLE CENTRAL O/H,H4-6,,,,"PRINTING, STAT & OFFICE EXP",,,,,40632,12908,267.04,REVENUE,Ricoh Uk Ltd
,,UNAPPORTIONABLE CENTRAL O/H,H4-6,,,,"PRINTING, STAT & OFFICE EXP",,,,,40632,12913,276.08,REVENUE,Ricoh Uk Ltd
,,UNAPPORTIONABLE CENTRAL O/H,H4-6,,,,"EQUIP, FURNITURE AND MATERIALS",,,,,40619,12172,569.45,REVENUE,Greenham Trading Limited
,,UNAPPORTIONABLE CENTRAL O/H,H4-6,,,,EXPENSES,,,,,40612,11883,1000,REVENUE,Zurich Municipal
,,UNAPPORTIONABLE CENTRAL O/H,H4-6,,,,CATERING,,,,,40632,12793,46.8,REVENUE,Varieties Catering
,,UNAPPORTIONABLE CENTRAL O/H,H4-6,,,,"PRINTING, STAT & OFFICE EXP",,,,,40632,12915,3.28,REVENUE,Ricoh Uk Ltd
,,UNAPPORTIONABLE CENTRAL O/H,H4-6,,,,"PRINTING, STAT & OFFICE EXP",,,,,40632,12914,522.66,REVENUE,Ricoh Uk Ltd
,,UNAPPORTIONABLE CENTRAL O/H,H4-6,,,,"PRINTING, STAT & OFFICE EXP",,,,,40605,11641,713,REVENUE,Lexisnexis Butterworths
,,UNAPPORTIONABLE CENTRAL O/H,H4-6,,,,"PRINTING, STAT & OFFICE EXP",,,,,40626,12494,30516,REVENUE,Lexisnexis Butterworths
,,UNAPPORTIONABLE CENTRAL O/H,H4-6,,,,SERVICES,,,,,40632,12899,90,REVENUE,Bascombe-Int
,,UNAPPORTIONABLE CENTRAL O/H,H4-6,,,,SERVICES,,,,,40605,11648,12841.5,REVENUE,Cluttons Llp
,,UNAPPORTIONABLE CENTRAL O/H,H4-6,,,,SERVICES,,,,,40632,12809,300,REVENUE,REDACTED
,,UNAPPORTIONABLE CENTRAL O/H,H4-6,,,,SERVICES,,,,,40616,12077,37647.3,REVENUE,Squire Sanders & Dempsey (Uk) Llp
,,UNAPPORTIONABLE CENTRAL O/H,H4-6,,,,SERVICES,,,,,40619,12279,1650,REVENUE,Hmcs
,,UNAPPORTIONABLE CENTRAL O/H,H4-6,,,,DIRECT EMPLOYEE EXPENSES,,,,,40630,631,-459.56,REVENUE,A O Shipley
,,UNAPPORTIONABLE CENTRAL O/H,H4-6,,,,INDIRECT EMPLOYEE EXPENSES,,,,,40632,12818,77.92,REVENUE,Hampshire County Council
,,UNAPPORTIONABLE CENTRAL O/H,H4-6,,,,PUBLIC TRANSPORT,,,,,40630,655,95.7,REVENUE,Rsp Travel Warrants
,,UNAPPORTIONABLE CENTRAL O/H,H4-6,,,,GRANTS AND SUBSCRIPTIONS,,,,,40626,12585,4008,REVENUE,Cipfa Business Limited
,,UNAPPORTIONABLE CENTRAL O/H,H4-6,,,,DIRECT EMPLOYEE EXPENSES,,,,,40630,631,-1830.25,REVENUE,A O Shipley
,,UNAPPORTIONABLE CENTRAL O/H,H4-6,,,,DIRECT EMPLOYEE EXPENSES,,,,,40626,12634,24786.28,REVENUE,Hampshire County Council
,,UNAPPORTIONABLE CENTRAL O/H,H4-6,,,,DIRECT EMPLOYEE EXPENSES,,,,,40632,12609,1711.58,REVENUE,Serco Rb Solutions
,,UNAPPORTIONABLE CENTRAL O/H,H4-6,,,,DIRECT EMPLOYEE EXPENSES,,,,,40619,11869,1936.4,REVENUE,Serco Rb Solutions
,,UNAPPORTIONABLE CENTRAL O/H,H4-6,,,,DIRECT EMPLOYEE EXPENSES,,,,,40626,12608,3024,REVENUE,Serco Rb Solutions
,,UNAPPORTIONABLE CENTRAL O/H,H4-6,,,,DIRECT EMPLOYEE EXPENSES,,,,,40619,11460,5011.2,REVENUE,Serco Rb Solutions
,,UNAPPORTIONABLE CENTRAL O/H,H4-6,,,,DIRECT EMPLOYEE EXPENSES,,,,,40632,12791,5562,REVENUE,Serco Rb Solutions
,,UNAPPORTIONABLE CENTRAL O/H,H4-6,,,,DIRECT EMPLOYEE EXPENSES,,,,,40632,12792,7108.42,REVENUE,Serco Rb Solutions
,,UNAPPORTIONABLE CENTRAL O/H,H4-6,,,,INDIRECT EMPLOYEE EXPENSES,,,,,40632,12778,600,REVENUE,Northgate Public Services
,,UNAPPORTIONABLE CENTRAL O/H,H4-6,,,,PUBLIC TRANSPORT,,,,,40630,655,171.4,REVENUE,Rsp Travel Warrants
,,UNAPPORTIONABLE CENTRAL O/H,H4-6,,,,"PRINTING, STAT & OFFICE EXP",,,,,40632,12907,307.93,REVENUE,Ricoh Uk Ltd
,,UNAPPORTIONABLE CENTRAL O/H,H4-6,,,,"PRINTING, STAT & OFFICE EXP",,,,,40632,12911,310.8,REVENUE,Ricoh Uk Ltd
,,UNAPPORTIONABLE CENTRAL O/H,H4-6,,,,COMMUNICATIONS AND COMPUTING,,,,,40619,10505,5111.25,REVENUE,Coactive Aspiren Ltd
,,UNAPPORTIONABLE CENTRAL O/H,H4-6,,,,COMMUNICATIONS AND COMPUTING,,,,,40612,11831,4498.8,REVENUE,Northgate Information Solutions
,,UNAPPORTIONABLE CENTRAL O/H,H4-6,,,,COMMUNICATIONS AND COMPUTING,,,,,40632,12772,445.04,REVENUE,Phoenix Software Ltd
,,UNAPPORTIONABLE CENTRAL O/H,H4-6,,,,DIRECT EMPLOYEE EXPENSES,,,,,40626,12635,2921.58,REVENUE,Hampshire County Council
,,UNAPPORTIONABLE CENTRAL O/H,H4-6,,,,"EQUIP, FURNITURE AND MATERIALS",,,,,40605,11511,696,REVENUE,Ace Office Supplies Ltd
,,UNAPPORTIONABLE CENTRAL O/H,H4-6,,,,GROUNDS MAINTENANCE COSTS,,,,,40605,11540,146600.46,REVENUE,Enterprise Plc
,,UNAPPORTIONABLE CENTRAL O/H,H4-6,,,,GROUNDS MAINTENANCE COSTS,,,,,40626,11537,146600.47,REVENUE,Enterprise Plc
,,UNAPPORTIONABLE CENTRAL O/H,H4-6,,,,"EQUIP, FURNITURE AND MATERIALS",,,,,40632,12824,837.47,REVENUE,Xerox Finance
,,CAPITAL,H4-9,,,,CAPITAL - PREMISES COSTS,,,,,40619,12223,1034.5,CAPITAL,Advanced Lock & Locksmithing L
,,CAPITAL,H4-9,,,,CAPITAL - PREMISES COSTS,,,,,40612,11873,825.6,CAPITAL,Blakes Property Consultants Limited
,,CAPITAL,H4-9,,,,CAPITAL - PREMISES COSTS,,,,,40605,11486,1728,CAPITAL,Martin Ralph Ltd
,,CAPITAL,H4-9,,,,REPAIRS AND MAINT OF BUILDINGS,,,,,40619,12239,300000,CAPITAL,First Wessex Housing Group Ltd
,,CAPITAL,H4-9,,,,CAPITAL - PREMISES COSTS,,,,,40626,12526,1000,CAPITAL,REDACTED
,,CAPITAL,H4-9,,,,CAPITAL - PREMISES COSTS,,,,,40612,11910,3295,CAPITAL,REDACTED
,,CAPITAL,H4-9,,,,CAPITAL - PREMISES COSTS,,,,,40612,11867,4830,CAPITAL,D G Installations Ltd
,,CAPITAL,H4-9,,,,CAPITAL - PREMISES COSTS,,,,,40612,11911,3529,CAPITAL,Dell Developments Ltd
,,CAPITAL,H4-9,,,,CAPITAL - PREMISES COSTS,,,,,40605,11493,3700,CAPITAL,G Rixon Ltd
,,CAPITAL,H4-9,,,,CAPITAL - PREMISES COSTS,,,,,40612,11866,583.6,CAPITAL,In Touch Support Ltd
,,CAPITAL,H4-9,,,,CAPITAL - PREMISES COSTS,,,,,40632,12926,156.4,CAPITAL,In Touch Support Ltd
,,CAPITAL,H4-9,,,,CAPITAL - PREMISES COSTS,,,,,40626,12566,614.58,CAPITAL,In Touch Support Ltd
,,CAPITAL,H4-9,,,,CAPITAL - PREMISES COSTS,,,,,40605,11552,761.24,CAPITAL,In Touch Support Ltd
,,CAPITAL,H4-9,,,,CAPITAL - PREMISES COSTS,,,,,40632,12927,470.28,CAPITAL,In Touch Support Ltd
,,CAPITAL,H4-9,,,,CAPITAL - PREMISES COSTS,,,,,40632,12902,5000,CAPITAL,REDACTED
,,CAPITAL,H4-9,,,,CAPITAL - PREMISES COSTS,,,,,40612,11800,1877,CAPITAL,Kemp Builders
,,CAPITAL,H4-9,,,,CAPITAL - PREMISES COSTS,,,,,40632,12924,1270,CAPITAL,Liftability Ltd
,,CAPITAL,H4-9,,,,CAPITAL - PREMISES COSTS,,,,,40626,12563,1589,CAPITAL,Liftech Systems (Se) Ltd
,,CAPITAL,H4-9,,,,CAPITAL - PREMISES COSTS,,,,,40605,11491,1619,CAPITAL,Liftech Systems (Se) Ltd
,,CAPITAL,H4-9,,,,CAPITAL - PREMISES COSTS,,,,,40605,11557,3575.5,CAPITAL,Liftech Systems (Se) Ltd
,,CAPITAL,H4-9,,,,CAPITAL - PREMISES COSTS,,,,,40632,12925,3919,CAPITAL,Liftech Systems (Se) Ltd
,,CAPITAL,H4-9,,,,CAPITAL - PREMISES COSTS,,,,,40612,11797,1210,CAPITAL,Lucas Windebank & Mcnally
,,CAPITAL,H4-9,,,,CAPITAL - PREMISES COSTS,,,,,40605,11581,4920,CAPITAL,Martin & Porter Co Ltd
,,CAPITAL,H4-9,,,,CAPITAL - PREMISES COSTS,,,,,40626,12564,1680,CAPITAL,Perryman & Williams Ltd
,,CAPITAL,H4-9,,,,CAPITAL - PREMISES COSTS,,,,,40612,11912,8000,CAPITAL,Perryman & Williams Ltd
,,CAPITAL,H4-9,,,,CAPITAL - PREMISES COSTS,,,,,40626,12565,10000,CAPITAL,Perryman & Williams Ltd
,,CAPITAL,H4-9,,,,CAPITAL - PREMISES COSTS,,,,,40626,12562,3150,CAPITAL,Prestige Plumbing
,,CAPITAL,H4-9,,,,GRANTS AND SUBSCRIPTIONS,,,,,40632,12864,4698,CAPITAL,Fleetlands Fc
,,CAPITAL,H4-9,,,,SERVICES,,,,,40619,12159,12039.88,CAPITAL,Atkins Ltd
,,CAPITAL,H4-9,,,,SERVICES,,,,,40619,12160,14569.39,CAPITAL,Atkins Ltd
,,CAPITAL,H4-9,,,,CAPITAL - PREMISES COSTS,,,,,40612,11832,41287.72,CAPITAL,Havant Borough Council
,,CAPITAL,H4-9,,,,SERVICES,,,,,40619,12289,1020,CAPITAL,Peter Mitchell Associates
,,CAPITAL,H4-9,,,,SERVICES,,,,,40619,12291,1183,CAPITAL,Bond Pearce Llp
,,CAPITAL,H4-9,,,,DIRECT TRANSPORT COSTS,,,,,40626,12525,133.01,CAPITAL,Arval Uk Mltd
,,CAPITAL,H4-9,,,,PUBLIC TRANSPORT,,,,,40630,655,132,CAPITAL,Rsp Travel Warrants
,,CAPITAL,H4-9,,,,"EQUIP, FURNITURE AND MATERIALS",,,,,40626,12454,1000.8,CAPITAL,Think4 I.T. Solutions Ltd
,,CAPITAL,H4-9,,,,CATERING,,,,,40632,12812,40.6,CAPITAL,Varieties Catering
,,CAPITAL,H4-9,,,,SERVICES,,,,,40632,12831,816,CAPITAL,Lavat Consulting Ltd
,,CAPITAL,H4-9,,,,SERVICES,,,,,40626,12294,1645,CAPITAL,Southampton City Council
,,CAPITAL,H4-9,,,,SERVICES,,,,,40612,11929,4822.8,CAPITAL,Strategic Leisure Ltd
,,CAPITAL,H4-9,,,,SERVICES,,,,,40626,12484,43478.52,CAPITAL,Mills & Reeve Llp
,,CAPITAL,H4-9,,,,CAPITAL - PREMISES COSTS,,,,,40612,11796,853.2,CAPITAL,Wicksteed Leisure Ltd
,,CAPITAL,H4-9,,,,CAPITAL - PREMISES COSTS,,,,,40605,11536,2971.98,CAPITAL,Wicksteed Leisure Ltd
,,CAPITAL,H4-9,,,,CAPITAL - PREMISES COSTS,,,,,40626,12236,16305.24,CAPITAL,Gs Building Services Ltd
,,CAPITAL,H4-9,,,,CAPITAL - PREMISES COSTS,,,,,40605,11044,17961.17,CAPITAL,Gs Building Services Ltd
,,CAPITAL,H4-9,,,,CAPITAL - PREMISES COSTS,,,,,40632,12888,172,CAPITAL,Rigby Taylor Ltd
,,CAPITAL,H4-9,,,,CAPITAL - PREMISES COSTS,,,,,40605,11480,12612,CAPITAL,Gravity Engineering Ltd
,,CAPITAL,H4-9,,,,CAPITAL - PREMISES COSTS,,,,,40605,11534,600,CAPITAL,The Play Inspection Company Ltd
,,CAPITAL,H4-9,,,,CAPITAL - PREMISES COSTS,,,,,40632,12860,4725,CAPITAL,Groundwork Solent
,,CAPITAL,H4-9,,,,CAPITAL - PREMISES COSTS,,,,,40605,11526,11846.5,CAPITAL,Smp (Playgrounds) Ltd
,,CAPITAL,H4-9,,,,CAPITAL - PREMISES COSTS,,,,,40605,11534,300,CAPITAL,The Play Inspection Company Ltd
,,CAPITAL,H4-9,,,,CAPITAL - PREMISES COSTS,,,,,40626,12558,8166,CAPITAL,Gravity Engineering Ltd
,,CAPITAL,H4-9,,,,COMMUNICATIONS AND COMPUTING,,,,,40632,12464,769.31,CAPITAL,Idox Software Ltd
,,CAPITAL,H4-9,,,,COMMUNICATIONS AND COMPUTING,,,,,40626,12465,2010,CAPITAL,Idox Software Ltd
,,CAPITAL,H4-9,,,,CAPITAL - SUPPLIES & SERVICES,,,,,40632,12909,7415.7,CAPITAL,Lima Networks
,,CAPITAL,H4-9,,,,CAPITAL - SUPPLIES & SERVICES,,,,,40605,11611,1620,CAPITAL,Web Labs Ltd
,,CAPITAL,H4-9,,,,CAPITAL - PREMISES COSTS,,,,,40619,12199,686.4,CAPITAL,Chubb Electronic Security Limited
,,CAPITAL,H4-9,,,,CAPITAL - PREMISES COSTS,,,,,40626,12503,5630.4,CAPITAL,Elj Furnishing
,,CAPITAL,H4-9,,,,CAPITAL - PREMISES COSTS,,,,,40626,12611,26657.76,CAPITAL,Kiwi Design Limited
,,CAPITAL,H4-9,,,,CAPITAL - PREMISES COSTS,,,,,40605,11632,2280,CAPITAL,Lucas Windebank & Mcnally
,,CAPITAL,H4-9,,,,CAPITAL - PREMISES COSTS,,,,,40619,12166,7095,CAPITAL,Lucas Windebank & Mcnally
,,CAPITAL,H4-9,,,,CAPITAL - PREMISES COSTS,,,,,40605,11637,5714.27,CAPITAL,Walker Electrical Services (Uk) Ltd
,,CAPITAL,H4-9,,,,CAPITAL - PREMISES COSTS,,,,,40612,11904,9724.26,CAPITAL,Walker Electrical Services (Uk) Ltd
,,CAPITAL,H4-9,,,,CAPITAL - PREMISES COSTS,,,,,40612,11903,11653.22,CAPITAL,Walker Electrical Services (Uk) Ltd
,,CAPITAL,H4-9,,,,SERVICES,,,,,40619,12244,873.38,CAPITAL,Parker Torrington Ltd
,,CAPITAL,H4-9,,,,SERVICES,,,,,40605,11634,911.12,CAPITAL,Parker Torrington Ltd
,,CAPITAL,H4-9,,,,SERVICES,,,,,40605,11635,1625.27,CAPITAL,Parker Torrington Ltd
,,CAPITAL,H4-9,,,,SERVICES,,,,,40619,12245,1721,CAPITAL,Parker Torrington Ltd
,,CAPITAL,H4-9,,,,SERVICES,,,,,40619,12264,2527.82,CAPITAL,Parker Torrington Ltd
,,CAPITAL,H4-9,,,,SERVICES,,,,,40612,11893,3410.44,CAPITAL,Parker Torrington Ltd
,,CAPITAL,H4-9,,,,CAPITAL - SUPPLIES & SERVICES,,,,,40619,12251,18000,CAPITAL,REDACTED
,,CAPITAL,H4-9,,,,SERVICES,,,,,40612,11836,387.9,CAPITAL,Jeffery Wood
,,CAPITAL,H4-9,,,,CAPITAL - SUPPLIES & SERVICES,,,,,40619,12302,2592,CAPITAL,Northgate Arinso Uk Ltd
